Workbook

Sheet README
B1: Note：
B2: This excel file is for vba code illustration only and does not reflect any company's real business model

Sheet Scheme_Benefit_Overview
C2: Life Table | D2: United States, 2021, Life Table
C3: Lapse | D3: Corresponding to Laspe rate table
C4: Membership | D4: For Ordinary and Senior Staffs only
C5: Scheme Service | D5: minimum age 25, subject to a maximum of 40 years
C6: Retirement Age | D6: 65
C7: Pension | D7: Ordinary: 2% * Final Salary * Scheme Service
D8: Senior: 3% * Final Salary * Scheme Service
C9: Spouse | D9: No spouse benefit
C10: Childern | D10: No childern benefit
C11: Contribution | D11: No contribution

Sheet Data
A1: Data as of November 2023
B2: Pension Scheme | C2: Company | D2: Gender | E2: Date of Birth | F2: Date Joined Company | G2: Monthly Salary as of November 2023 | H2: Beneficiary | I2: Status
B3: Type A | C3: Sub A | D3: M | E3: 1971-02-10 | F3: 2000-09-02 | G3: 301200 | H3: Pensioner | I3: Ordinary
B7: Pension Scheme | C7: Company | D7: Gender | E7: Date of Birth | F7: Date Joined Company | G7: Monthly Salary as of November 2023 | H7: Beneficiary | I7: Status
B8: Type A | C8: Sub A | D8: M | E8: 1971-02-10 | F8: 2000-09-02 | G8: 301200 | H8: Pensioner | I8: Ordinary
B9: Type A | C9: Sub A | D9: F | E9: 1983-09-06 | F9: 2008-02-20 | G9: 420300 | H9: Pensioner | I9: Senior
B10: Type A | C10: Sub A | D10: M | E10: 1971-02-10 | F10: 2000-09-02 | G10: 301200 | H10: Pensioner | I10: Ordinary

Sheet Output
A1: Data as of November 2023
B2: =Data!B7 -> Pension Scheme | C2: =Data!C7 -> Company | D2: =Data!D7 -> Gender | E2: =Data!E7 -> Date of Birth | F2: =Data!F7 -> Date Joined Company | G2: =Data!G7 -> Monthly Salary as of November 2023 | H2: =Data!H7 -> Beneficiary | I2: =Data!I7 -> Status | J2: Output
B3: =Data!B8 -> Type A | C3: =Data!C8 -> Sub A | D3: =Data!D8 -> M | E3: =Data!E8 -> 1971-02-10 | F3: =Data!F8 -> 2000-09-02 | G3: =Data!G8 -> 301200 | H3: =Data!H8 -> Pensioner | I3: =Data!I8 -> Ordinary | J3: 10660348.7
B4: =Data!B9 -> Type A | C4: =Data!C9 -> Sub A | D4: =Data!D9 -> F | E4: =Data!E9 -> 1983-09-06 | F4: =Data!F9 -> 2008-02-20 | G4: =Data!G9 -> 420300 | H4: =Data!H9 -> Pensioner | I4: =Data!I9 -> Senior | J4: 14198615.47
B5: =Data!B10 -> Type A | C5: =Data!C10 -> Sub A | D5: =Data!D10 -> M | E5: =Data!E10 -> 1971-02-10 | F5: =Data!F10 -> 2000-09-02 | G5: =Data!G10 -> 301200 | H5: =Data!H10 -> Pensioner | I5: =Data!I10 -> Ordinary | J5: 10660348.7

Sheet Policy_Info
B1: Policy holder's Information
B2: Valuation Date | C2: 2023-12-31
B3: Date of Birth | C3: =Data!$E$3 -> 1971-02-10
B4: Max_Age | C4: 100
B5: Gender | C5: =Data!$D$3 -> M
B6: Discount Rate p.a. | C6: 0.02
B7: Disc Rate monthly | C7: =(1+C6)^(1/12)-1 -> 0.001651581302
B8: Retirement_Age | C8: 65
B9: Max_Scheme_Service | C9: =Retire_age-Schem_Start_Age -> 40
B10: Scheme_Start_Age | C10: 25
B11: Date Joined Company | C11: =Data!$F$3 -> 2000-09-02
B12: Status | C12: =Data!$I$3 -> Ordinary
B13: Pension_Factor | C13: =VLOOKUP(Status,Benefit_Factor!$B$2:$C$3,2) -> 0.02
B14: Basic Monthly Salary as at November 2023 | C14: =Data!$G$3 -> 301200
B15: Salary_Increase_Rate | C15: 0.02
B16: Pension_Increase_Rate | C16: 0.005
B17: Current_Service_Year | C17: =MIN(YEARFRAC(Joined_date,Val_Date,3),Max_Schem_Service) -> 23.34246575
B18: Expect_Service_Year | C18: =MAX(Scheme_service) -> 35.43561644

Sheet CF_Calculation
A1: Date | B1: Att Age | C1: Int Age | D1: Indicator Retired: 1 | E1: Calender Month | F1: Calender Year | G1: Policy Month | H1: Policy Year | I1: time | J1: Discount Factor (BOM) | K1: qx | L1: Lapse Rate | M1: px | N1: Scheme Service | O1: Salary PP (per policy) | P1: Pension PP (per policy) | Q1: Pension CF (cash flow) | R1: PVCF （present value of CF) | S1: Obligation
A2: 2022-11-30 | M2: 1 | N2: =IF(D3=1,Max_Schem_Service,"") ->  | O2: =Monthly_Salary -> 301200
A3: =IF(B3="","",EOMONTH(A2,1)) -> 2022-12-31 | B3: =YEARFRAC(Birth_Date,Val_Date,3) -> 52.92328767 | C3: =IF(B3="","",INT(B3)) -> 52 | D3: =IF(C3="","",IF(C3>=Retire_age,1,0)) -> 0 | E3: 1 | F3: =YEAR(Val_Date)+1 -> 2024 | G3: 1 | H3: 1 | I3: =0 -> 0 | J3: 1 | K3: =IF(B3="","",1-(1-VLOOKUP(C3,Mortality!$F$4:$H$105,IF(Gender="M",2,3)))^(1/12)) -> 0.0006430827534 | L3: =IF(B3="","",1-(1-VLOOKUP(H3,Lapse!$B$3:$C$43,2))^(1/12)) -> 0.008741610955 | M3: =IF(B3="","",M2*(1-K3)*(1-L3)) -> 0.9906209279 | N3: =IF(B3="","",IF(retire_indicator=1,N2,MIN(YEARFRAC(DATE(Calender_year,Calender_month+1,0),Joined_date,3),Max_Schem_Service))) -> 23.42739726 | O3: =IF(B3="","",IF(retire_indicator=1,O2,Monthly_Salary*(1+Sal_increase_rate_pa)^(Calender_year-YEAR(Val_Date)-1))) -> 301200 | P3: =IF(B3="","",IF(retire_indicator=1, Pension_factor*Scheme_service*Salary_PP*(1+Pension_increase_rate_pa)^(Calender_year-YEAR(Val_Date)-1),0)) -> 0 | Q3: =IF(B3="","",M2*Pension_PP) -> 0 | R3: =IF(B3="",0,Pension_CF+R4/(1+Disc_Rate_Month)) -> 16183210.11 | S3: =PVCF*current_service/except_service -> 10660348.7
A4: =IF(B4="","",EOMONTH(A3,1)) -> 2023-01-31 | B4: =IF(B3="","", IF(B3+1/12>Max_age,"",B3+1/12)) -> 53.006621 | C4: =IF(B4="","",INT(B4)) -> 53 | D4: 0 | E4: =IF(B4="","",IF(E3=12,1,E3+1)) -> 2 | F4: =IF(B4="","",IF(E3=12,F3+1,F3)) -> 2024 | G4: =IF(B4="","",IF(G3=12,1,G3+1)) -> 2 | H4: =IF(B4="","",IF(G3=12,H3+1,H3)) -> 1 | I4: =IF(B4="","",I3+1) -> 1 | J4: =IF(B4="","",(1+Disc_Rate_Month)^(-I4)) -> 0.9983511419 | K4: =IF(B4="","",1-(1-VLOOKUP(C4,Mortality!$F$4:$H$105,IF(Gender="M",2,3)))^(1/12)) -> 0.0006956655767 | L4: =IF(B4="","",1-(1-VLOOKUP(H4,Lapse!$B$3:$C$43,2))^(1/12)) -> 0.008741610955 | M4: =IF(B4="","",M3*(1-K4)*(1-L4)) -> 0.9812781884 | N4: 23.50684932 | O4: 301200 | P4: 0 | Q4: 0 | R4: 16209938 | S4: 10677955.14
A5: 2023-02-28 | B5: 53.08995434 | C5: 53 | D5: 0 | E5: 3 | F5: =IF(B5="","",IF(E4=12,F4+1,F4)) -> 2024 | G5: =IF(B5="","",IF(G4=12,1,G4+1)) -> 3 | H5: =IF(B5="","",IF(G4=12,H4+1,H4)) -> 1 | I5: 2 | J5: 0.9967050026 | K5: =IF(B5="","",1-(1-VLOOKUP(C5,Mortality!$F$4:$H$105,IF(Gender="M",2,3)))^(1/12)) -> 0.0006956655767 | L5: =IF(B5="","",1-(1-VLOOKUP(H5,Lapse!$B$3:$C$43,2))^(1/12)) -> 0.008741610955 | M5: 0.9720235622 | N5: 23.59178082 | O5: 301200 | P5: 0 | Q5: 0 | R5: 16236710.03 | S5: 10695590.65
A6: 2023-03-31 | B6: 53.17328767 | C6: 53 | D6: 0 | E6: 4 | F6: 2024 | G6: 4 | H6: 1 | I6: 3 | J6: 0.9950615775 | K6: =IF(B6="","",1-(1-VLOOKUP(C6,Mortality!$F$4:$H$105,IF(Gender="M",2,3)))^(1/12)) -> 0.0006956655767 | L6: =IF(B6="","",1-(1-VLOOKUP(H6,Lapse!$B$3:$C$43,2))^(1/12)) -> 0.008741610955 | M6: 0.9628562182 | N6: 23.6739726 | O6: 301200 | P6: 0 | Q6: 0 | R6: 16263526.27 | S6: 10713255.28
A7: 2023-04-30 | B7: 53.256621 | C7: 53 | D7: 0 | E7: 5 | F7: 2024 | G7: 5 | H7: 1 | I7: 4 | J7: 0.9934208622 | K7: =IF(B7="","",1-(1-VLOOKUP(C7,Mortality!$F$4:$H$105,IF(Gender="M",2,3)))^(1/12)) -> 0.0006956655767 | L7: =IF(B7="","",1-(1-VLOOKUP(H7,Lapse!$B$3:$C$43,2))^(1/12)) -> 0.008741610955 | M7: 0.9537753331 | N7: 23.75890411 | O7: 301200 | P7: 0 | Q7: 0 | R7: 16290386.81 | S7: 10730949.1
A8: 2023-05-31 | B8: 53.33995434 | C8: 53 | D8: 0 | E8: 6 | F8: 2024 | G8: 6 | H8: 1 | I8: 5 | J8: 0.9917828521 | K8: =IF(B8="","",1-(1-VLOOKUP(C8,Mortality!$F$4:$H$105,IF(Gender="M",2,3)))^(1/12)) -> 0.0006956655767 | L8: =IF(B8="","",1-(1-VLOOKUP(H8,Lapse!$B$3:$C$43,2))^(1/12)) -> 0.008741610955 | M8: 0.9447800917 | N8: 23.84109589 | O8: 301200 | P8: 0 | Q8: 0 | R8: 16317291.71 | S8: 10748672.13
A9: 2023-06-30 | B9: 53.42328767 | C9: 53 | D9: 0 | E9: 7 | F9: 2024 | G9: 7 | H9: 1 | I9: 6 | J9: 0.990147543 | K9: =IF(B9="","",1-(1-VLOOKUP(C9,Mortality!$F$4:$H$105,IF(Gender="M",2,3)))^(1/12)) -> 0.0006956655767 | L9: =IF(B9="","",1-(1-VLOOKUP(H9,Lapse!$B$3:$C$43,2))^(1/12)) -> 0.008741610955 | M9: 0.9358696861 | N9: 23.9260274 | O9: 301200 | P9: 0 | Q9: 0 | R9: 16344241.04 | S9: 10766424.44
A10: 2023-07-31 | B10: 53.506621 | C10: 53 | D10: 0 | E10: 8 | F10: 2024 | G10: 8 | H10: 1 | I10: 7 | J10: 0.9885149302 | K10: =IF(B10="","",1-(1-VLOOKUP(C10,Mortality!$F$4:$H$105,IF(Gender="M",2,3)))^(1/12)) -> 0.0006956655767 | L10: =IF(B10="","",1-(1-VLOOKUP(H10,Lapse!$B$3:$C$43,2))^(1/12)) -> 0.008741610955 | M10: 0.9270433164 | N10: 24.0109589 | O10: 301200 | P10: 0 | Q10: 0 | R10: 16371234.88 | S10: 10784206.06
A11: 2023-08-31 | B11: 53.58995434 | C11: 53 | D11: 0 | E11: 9 | F11: 2024 | G11: 9 | H11: 1 | I11: 8 | J11: 0.9868850094 | K11: =IF(B11="","",1-(1-VLOOKUP(C11,Mortality!$F$4:$H$105,IF(Gender="M",2,3)))^(1/12)) -> 0.0006956655767 | L11: =IF(B11="","",1-(1-VLOOKUP(H11,Lapse!$B$3:$C$43,2))^(1/12)) -> 0.008741610955 | M11: 0.9183001898 | N11: 24.09315068 | O11: 301200 | P11: 0 | Q11: 0 | R11: 16398273.31 | S11: 10802017.06
A12: 2023-09-30 | B12: 53.67328767 | C12: 53 | D12: 0 | E12: 10 | F12: 2024 | G12: 10 | H12: 1 | I12: 9 | J12: 0.9852577761 | K12: =IF(B12="","",1-(1-VLOOKUP(C12,Mortality!$F$4:$H$105,IF(Gender="M",2,3)))^(1/12)) -> 0.0006956655767 | L12: =IF(B12="","",1-(1-VLOOKUP(H12,Lapse!$B$3:$C$43,2))^(1/12)) -> 0.008741610955 | M12: 0.9096395214 | N12: 24.17808219 | O12: 301200 | P12: 0 | Q12: 0 | R12: 16425356.39 | S12: 10819857.46
A13: 2023-10-31 | B13: 53.756621 | C13: 53 | D13: 0 | E13: 11 | F13: 2024 | G13: 11 | H13: 1 | I13: 10 | J13: 0.9836332258 | K13: =IF(B13="","",1-(1-VLOOKUP(C13,Mortality!$F$4:$H$105,IF(Gender="M",2,3)))^(1/12)) -> 0.0006956655767 | L13: =IF(B13="","",1-(1-VLOOKUP(H13,Lapse!$B$3:$C$43,2))^(1/12)) -> 0.008741610955 | M13: 0.9010605334 | N13: 24.26027397 | O13: 301200 | P13: 0 | Q13: 0 | R13: 16452484.2 | S13: 10837727.34
A14: 2023-11-30 | B14: 53.83995434 | C14: 53 | D14: 0 | E14: 12 | F14: 2024 | G14: 12 | H14: 1 | I14: 11 | J14: 0.9820113542 | K14: =IF(B14="","",1-(1-VLOOKUP(C14,Mortality!$F$4:$H$105,IF(Gender="M",2,3)))^(1/12)) -> 0.0006956655767 | L14: =IF(B14="","",1-(1-VLOOKUP(H14,Lapse!$B$3:$C$43,2))^(1/12)) -> 0.008741610955 | M14: 0.8925624555 | N14: 24.34520548 | O14: 301200 | P14: 0 | Q14: 0 | R14: 16479656.82 | S14: 10855626.73
A15: 2023-12-31 | B15: 53.92328767 | C15: 53 | D15: 0 | E15: 1 | F15: 2025 | G15: 1 | H15: 2 | I15: 12 | J15: 0.9803921569 | K15: =IF(B15="","",1-(1-VLOOKUP(C15,Mortality!$F$4:$H$105,IF(Gender="M",2,3)))^(1/12)) -> 0.0006956655767 | L15: =IF(B15="","",1-(1-VLOOKUP(H15,Lapse!$B$3:$C$43,2))^(1/12)) -> 0.006924382628 | M15: 0.8857653861 | N15: 24.43013699 | O15: 307224 | P15: 0 | Q15: 0 | R15: 16506874.31 | S15: 10873555.68
A16: 2024-01-31 | B16: 54.006621 | C16: 54 | D16: 0 | E16: 2 | F16: 2025 | G16: 2 | H16: 2 | I16: 13 | J16: 0.9787756293 | K16: =IF(B16="","",1-(1-VLOOKUP(C16,Mortality!$F$4:$H$105,IF(Gender="M",2,3)))^(1/12)) -> 0.0007550412827 | L16: =IF(B16="","",1-(1-VLOOKUP(H16,Lapse!$B$3:$C$43,2))^(1/12)) -> 0.006924382628 | M16: 0.8789678492 | N16: 24.50684932 | O16: 307224 | P16: 0 | Q16: 0 | R16: 16534136.76 | S16: 10891514.24
A17: 2024-02-29 | B17: 54.08995434 | C17: 54 | D17: 0 | E17: 3 | F17: 2025 | G17: 3 | H17: 2 | I17: 14 | J17: 0.9771617672 | K17: =IF(B17="","",1-(1-VLOOKUP(C17,Mortality!$F$4:$H$105,IF(Gender="M",2,3)))^(1/12)) -> 0.0007550412827 | L17: =IF(B17="","",1-(1-VLOOKUP(H17,Lapse!$B$3:$C$43,2))^(1/12)) -> 0.006924382628 | M17: 0.8722224779 | N17: 24.59178082 | O17: 307224 | P17: 0 | Q17: 0 | R17: 16561444.23 | S17: 10909502.46
A18: 2024-03-31 | B18: 54.17328767 | C18: 54 | D18: 0 | E18: 4 | F18: 2025 | G18: 4 | H18: 2 | I18: 15 | J18: 0.9755505662 | K18: =IF(B18="","",1-(1-VLOOKUP(C18,Mortality!$F$4:$H$105,IF(Gender="M",2,3)))^(1/12)) -> 0.0007550412827 | L18: =IF(B18="","",1-(1-VLOOKUP(H18,Lapse!$B$3:$C$43,2))^(1/12)) -> 0.006924382628 | M18: 0.8655288719 | N18: 24.6739726 | O18: 307224 | P18: 0 | Q18: 0 | R18: 16588796.8 | S18: 10927520.39
A19: 2024-04-30 | B19: 54.256621 | C19: 54 | D19: 0 | E19: 5 | F19: 2025 | G19: 5 | H19: 2 | I19: 16 | J19: 0.9739420217 | K19: =IF(B19="","",1-(1-VLOOKUP(C19,Mortality!$F$4:$H$105,IF(Gender="M",2,3)))^(1/12)) -> 0.0007550412827 | L19: =IF(B19="","",1-(1-VLOOKUP(H19,Lapse!$B$3:$C$43,2))^(1/12)) -> 0.006924382628 | M19: 0.8588866339 | N19: 24.75890411 | O19: 307224 | P19: 0 | Q19: 0 | R19: 16616194.55 | S19: 10945568.08
A20: 2024-05-31 | B20: 54.33995434 | C20: 54 | D20: 0 | E20: 6 | F20: 2025 | G20: 6 | H20: 2 | I20: 17 | J20: 0.9723361296 | K20: =IF(B20="","",1-(1-VLOOKUP(C20,Mortality!$F$4:$H$105,IF(Gender="M",2,3)))^(1/12)) -> 0.0007550412827 | L20: =IF(B20="","",1-(1-VLOOKUP(H20,Lapse!$B$3:$C$43,2))^(1/12)) -> 0.006924382628 | M20: 0.8522953698 | N20: 24.84109589 | O20: 307224 | P20: 0 | Q20: 0 | R20: 16643637.54 | S20: 10963645.57
A21: 2024-06-30 | B21: 54.42328767 | C21: 54 | D21: 0 | E21: 7 | F21: 2025 | G21: 7 | H21: 2 | I21: 18 | J21: 0.9707328853 | K21: =IF(B21="","",1-(1-VLOOKUP(C21,Mortality!$F$4:$H$105,IF(Gender="M",2,3)))^(1/12)) -> 0.0007550412827 | L21: =IF(B21="","",1-(1-VLOOKUP(H21,Lapse!$B$3:$C$43,2))^(1/12)) -> 0.006924382628 | M21: 0.8457546883 | N21: 24.9260274 | O21: 307224 | P21: 0 | Q21: 0 | R21: 16671125.86 | S21: 10981752.93
A22: 2024-07-31 | B22: 54.506621 | C22: 54 | D22: 0 | E22: 8 | F22: 2025 | G22: 8 | H22: 2 | I22: 19 | J22: 0.9691322845 | K22: =IF(B22="","",1-(1-VLOOKUP(C22,Mortality!$F$4:$H$105,IF(Gender="M",2,3)))^(1/12)) -> 0.0007550412827 | L22: =IF(B22="","",1-(1-VLOOKUP(H22,Lapse!$B$3:$C$43,2))^(1/12)) -> 0.006924382628 | M22: 0.8392642013 | N22: 25.0109589 | O22: 307224 | P22: 0 | Q22: 0 | R22: 16698659.58 | S22: 10999890.18
A23: 2024-08-31 | B23: 54.58995434 | C23: 54 | D23: 0 | E23: 9 | F23: 2025 | G23: 9 | H23: 2 | I23: 20 | J23: 0.9675343229 | K23: =IF(B23="","",1-(1-VLOOKUP(C23,Mortality!$F$4:$H$105,IF(Gender="M",2,3)))^(1/12)) -> 0.0007550412827 | L23: =IF(B23="","",1-(1-VLOOKUP(H23,Lapse!$B$3:$C$43,2))^(1/12)) -> 0.006924382628 | M23: 0.8328235236 | N23: 25.09315068 | O23: 307224 | P23: 0 | Q23: 0 | R23: 16726238.78 | S23: 11018057.4
A24: 2024-09-30 | B24: 54.67328767 | C24: 54 | D24: 0 | E24: 10 | F24: 2025 | G24: 10 | H24: 2 | I24: 21 | J24: 0.9659389961 | K24: =IF(B24="","",1-(1-VLOOKUP(C24,Mortality!$F$4:$H$105,IF(Gender="M",2,3)))^(1/12)) -> 0.0007550412827 | L24: =IF(B24="","",1-(1-VLOOKUP(H24,Lapse!$B$3:$C$43,2))^(1/12)) -> 0.006924382628 | M24: 0.8264322729 | N24: 25.17808219 | O24: 307224 | P24: 0 | Q24: 0 | R24: 16753863.52 | S24: 11036254.61
A25: 2024-10-31 | B25: 54.756621 | C25: 54 | D25: 0 | E25: 11 | F25: 2025 | G25: 11 | H25: 2 | I25: 22 | J25: 0.9643462998 | K25: =IF(B25="","",1-(1-VLOOKUP(C25,Mortality!$F$4:$H$105,IF(Gender="M",2,3)))^(1/12)) -> 0.0007550412827 | L25: =IF(B25="","",1-(1-VLOOKUP(H25,Lapse!$B$3:$C$43,2))^(1/12)) -> 0.006924382628 | M25: 0.8200900698 | N25: 25.26027397 | O25: 307224 | P25: 0 | Q25: 0 | R25: 16781533.89 | S25: 11054481.89
A26: 2024-11-30 | B26: 54.83995434 | C26: 54 | D26: 0 | E26: 12 | F26: 2025 | G26: 12 | H26: 2 | I26: 23 | J26: 0.9627562296 | K26: =IF(B26="","",1-(1-VLOOKUP(C26,Mortality!$F$4:$H$105,IF(Gender="M",2,3)))^(1/12)) -> 0.0007550412827 | L26: =IF(B26="","",1-(1-VLOOKUP(H26,Lapse!$B$3:$C$43,2))^(1/12)) -> 0.006924382628 | M26: 0.8137965381 | N26: 25.34520548 | O26: 307224 | P26: 0 | Q26: 0 | R26: 16809249.95 | S26: 11072739.26
A27: 2024-12-31 | B27: 54.92328767 | C27: 54 | D27: 0 | E27: 1 | F27: 2026 | G27: 1 | H27: 3 | I27: 24 | J27: 0.9611687812 | K27: =IF(B27="","",1-(1-VLOOKUP(C27,Mortality!$F$4:$H$105,IF(Gender="M",2,3)))^(1/12)) -> 0.0007550412827 | L27: =IF(B27="","",1-(1-VLOOKUP(H27,Lapse!$B$3:$C$43,2))^(1/12)) -> 0.006029308066 | M27: 0.8082791628 | N27: 25.43013699 | O27: 313368.48 | P27: 0 | Q27: 0 | R27: 16837011.8 | S27: 11091026.79
A28: 2025-01-31 | B28: 55.006621 | C28: 55 | D28: 0 | E28: 2 | F28: 2026 | G28: 2 | H28: 3 | I28: 25 | J28: 0.9595839503 | K28: =IF(B28="","",1-(1-VLOOKUP(C28,Mortality!$F$4:$H$105,IF(Gender="M",2,3)))^(1/12)) -> 0.0008164936799 | L28: =IF(B28="","",1-(1-VLOOKUP(H28,Lapse!$B$3:$C$43,2))^(1/12)) -> 0.006029308066 | M28: 0.802749823 | N28: 25.50684932 | O28: 313368.48 | P28: 0 | Q28: 0 | R28: 16864819.49 | S28: 11109344.52
A29: 2025-02-28 | B29: 55.08995434 | C29: 55 | D29: 0 | E29: 3 | F29: 2026 | G29: 3 | H29: 3 | I29: 26 | J29: 0.9580017326 | K29: =IF(B29="","",1-(1-VLOOKUP(C29,Mortality!$F$4:$H$105,IF(Gender="M",2,3)))^(1/12)) -> 0.0008164936799 | L29: =IF(B29="","",1-(1-VLOOKUP(H29,Lapse!$B$3:$C$43,2))^(1/12)) -> 0.006029308066 | M29: 0.7972583087 | N29: 25.59178082 | O29: 313368.48 | P29: 0 | Q29: 0 | R29: 16892673.11 | S29: 11127692.51
A30: 2025-03-31 | B30: 55.17328767 | C30: 55 | D30: 0 | E30: 4 | F30: 2026 | G30: 4 | H30: 3 | I30: 27 | J30: 0.9564221237 | K30: =IF(B30="","",1-(1-VLOOKUP(C30,Mortality!$F$4:$H$105,IF(Gender="M",2,3)))^(1/12)) -> 0.0008164936799 | L30: =IF(B30="","",1-(1-VLOOKUP(H30,Lapse!$B$3:$C$43,2))^(1/12)) -> 0.006029308066 | M30: 0.7918043612 | N30: 25.6739726 | O30: 313368.48 | P30: 0 | Q30: 0 | R30: 16920572.73 | S30: 11146070.8
A31: 2025-04-30 | B31: 55.256621 | C31: 55 | D31: 0 | E31: 5 | F31: 2026 | G31: 5 | H31: 3 | I31: 28 | J31: 0.9548451193 | K31: =IF(B31="","",1-(1-VLOOKUP(C31,Mortality!$F$4:$H$105,IF(Gender="M",2,3)))^(1/12)) -> 0.0008164936799 | L31: =IF(B31="","",1-(1-VLOOKUP(H31,Lapse!$B$3:$C$43,2))^(1/12)) -> 0.006029308066 | M31: 0.7863877235 | N31: 25.75890411 | O31: 313368.48 | P31: 0 | Q31: 0 | R31: 16948518.44 | S31: 11164479.44
A32: 2025-05-31 | B32: 55.33995434 | C32: 55 | D32: 0 | E32: 6 | F32: 2026 | G32: 6 | H32: 3 | I32: 29 | J32: 0.9532707152 | K32: =IF(B32="","",1-(1-VLOOKUP(C32,Mortality!$F$4:$H$105,IF(Gender="M",2,3)))^(1/12)) -> 0.0008164936799 | L32: =IF(B32="","",1-(1-VLOOKUP(H32,Lapse!$B$3:$C$43,2))^(1/12)) -> 0.006029308066 | M32: 0.7810081404 | N32: 25.84109589 | O32: 313368.48 | P32: 0 | Q32: 0 | R32: 16976510.29 | S32: 11182918.49
A33: 2025-06-30 | B33: 55.42328767 | C33: 55 | D33: 0 | E33: 7 | F33: 2026 | G33: 7 | H33: 3 | I33: 30 | J33: 0.9516989071 | K33: =IF(B33="","",1-(1-VLOOKUP(C33,Mortality!$F$4:$H$105,IF(Gender="M",2,3)))^(1/12)) -> 0.0008164936799 | L33: =IF(B33="","",1-(1-VLOOKUP(H33,Lapse!$B$3:$C$43,2))^(1/12)) -> 0.006029308066 | M33: 0.7756653583 | N33: 25.9260274 | O33: 313368.48 | P33: 0 | Q33: 0 | R33: 17004548.38 | S33: 11201387.98
A34: 2025-07-31 | B34: 55.506621 | C34: 55 | D34: 0 | E34: 8 | F34: 2026 | G34: 8 | H34: 3 | I34: 31 | J34: 0.9501296907 | K34: =IF(B34="","",1-(1-VLOOKUP(C34,Mortality!$F$4:$H$105,IF(Gender="M",2,3)))^(1/12)) -> 0.0008164936799 | L34: =IF(B34="","",1-(1-VLOOKUP(H34,Lapse!$B$3:$C$43,2))^(1/12)) -> 0.006029308066 | M34: 0.7703591255 | N34: 26.0109589 | O34: 313368.48 | P34: 0 | Q34: 0 | R34: 17032632.77 | S34: 11219887.99
A35: 2025-08-31 | B35: 55.58995434 | C35: 55 | D35: 0 | E35: 9 | F35: 2026 | G35: 9 | H35: 3 | I35: 32 | J35: 0.9485630617 | K35: =IF(B35="","",1-(1-VLOOKUP(C35,Mortality!$F$4:$H$105,IF(Gender="M",2,3)))^(1/12)) -> 0.0008164936799 | L35: =IF(B35="","",1-(1-VLOOKUP(H35,Lapse!$B$3:$C$43,2))^(1/12)) -> 0.006029308066 | M35: 0.7650891921 | N35: 26.09315068 | O35: 313368.48 | P35: 0 | Q35: 0 | R35: 17060763.55 | S35: 11238418.54
A36: 2025-09-30 | B36: 55.67328767 | C36: 55 | D36: 0 | E36: 10 | F36: 2026 | G36: 10 | H36: 3 | I36: 33 | J36: 0.9469990158 | K36: =IF(B36="","",1-(1-VLOOKUP(C36,Mortality!$F$4:$H$105,IF(Gender="M",2,3)))^(1/12)) -> 0.0008164936799 | L36: =IF(B36="","",1-(1-VLOOKUP(H36,Lapse!$B$3:$C$43,2))^(1/12)) -> 0.006029308066 | M36: 0.7598553096 | N36: 26.17808219 | O36: 313368.48 | P36: 0 | Q36: 0 | R36: 17088940.79 | S36: 11256979.71
A37: 2025-10-31 | B37: 55.756621 | C37: 55 | D37: 0 | E37: 11 | F37: 2026 | G37: 11 | H37: 3 | I37: 34 | J37: 0.9454375488 | K37: =IF(B37="","",1-(1-VLOOKUP(C37,Mortality!$F$4:$H$105,IF(Gender="M",2,3)))^(1/12)) -> 0.0008164936799 | L37: =IF(B37="","",1-(1-VLOOKUP(H37,Lapse!$B$3:$C$43,2))^(1/12)) -> 0.006029308066 | M37: 0.7546572315 | N37: 26.26027397 | O37: 313368.48 | P37: 0 | Q37: 0 | R37: 17117164.56 | S37: 11275571.52
A38: 2025-11-30 | B38: 55.83995434 | C38: 55 | D38: 0 | E38: 12 | F38: 2026 | G38: 12 | H38: 3 | I38: 35 | J38: 0.9438786565 | K38: =IF(B38="","",1-(1-VLOOKUP(C38,Mortality!$F$4:$H$105,IF(Gender="M",2,3)))^(1/12)) -> 0.0008164936799 | L38: =IF(B38="","",1-(1-VLOOKUP(H38,Lapse!$B$3:$C$43,2))^(1/12)) -> 0.006029308066 | M38: 0.7494947128 | N38: 26.34520548 | O38: 313368.48 | P38: 0 | Q38: 0 | R38: 17145434.95 | S38: 11294194.05
A39: 2025-12-31 | B39: 55.92328767 | C39: 55 | D39: 0 | E39: 1 | F39: 2027 | G39: 1 | H39: 4 | I39: 36 | J39: 0.9423223345 | K39: =IF(B39="","",1-(1-VLOOKUP(C39,Mortality!$F$4:$H$105,IF(Gender="M",2,3)))^(1/12)) -> 0.0008164936799 | L39: =IF(B39="","",1-(1-VLOOKUP(H39,Lapse!$B$3:$C$43,2))^(1/12)) -> 0.005143012832 | M39: 0.7450312415 | N39: 26.43013699 | O39: 319635.8496 | P39: 0 | Q39: 0 | R39: 17173752.03 | S39: 11312847.33
A40: 2026-01-31 | B40: 56.006621 | C40: 56 | D40: 0 | E40: 2 | F40: 2027 | G40: 2 | H40: 4 | I40: 37 | J40: 0.9407685788 | K40: =IF(B40="","",1-(1-VLOOKUP(C40,Mortality!$F$4:$H$105,IF(Gender="M",2,3)))^(1/12)) -> 0.0008800699061 | L40: =IF(B40="","",1-(1-VLOOKUP(H40,Lapse!$B$3:$C$43,2))^(1/12)) -> 0.005143012832 | M40: 0.7405472288 | N40: 26.50684932 | O40: 319635.8496 | P40: 0 | Q40: 0 | R40: 17202115.88 | S40: 11331531.41
A41: 2026-02-28 | B41: 56.08995434 | C41: 56 | D41: 0 | E41: 3 | F41: 2027 | G41: 3 | H41: 4 | I41: 38 | J41: 0.9392173849 | K41: =IF(B41="","",1-(1-VLOOKUP(C41,Mortality!$F$4:$H$105,IF(Gender="M",2,3)))^(1/12)) -> 0.0008800699061 | L41: =IF(B41="","",1-(1-VLOOKUP(H41,Lapse!$B$3:$C$43,2))^(1/12)) -> 0.005143012832 | M41: 0.7360902035 | N41: 26.59178082 | O41: 319635.8496 | P41: 0 | Q41: 0 | R41: 17230526.57 | S41: 11350246.36
A42: 2026-03-31 | B42: 56.17328767 | C42: 56 | D42: 0 | E42: 4 | F42: 2027 | G42: 4 | H42: 4 | I42: 39 | J42: 0.9376687487 | K42: =IF(B42="","",1-(1-VLOOKUP(C42,Mortality!$F$4:$H$105,IF(Gender="M",2,3)))^(1/12)) -> 0.0008800699061 | L42: =IF(B42="","",1-(1-VLOOKUP(H42,Lapse!$B$3:$C$43,2))^(1/12)) -> 0.005143012832 | M42: 0.731660003 | N42: 26.6739726 | O42: 319635.8496 | P42: 0 | Q42: 0 | R42: 17258984.19 | S42: 11368992.21
A43: 2026-04-30 | B43: 56.256621 | C43: 56 | D43: 0 | E43: 5 | F43: 2027 | G43: 5 | H43: 4 | I43: 40 | J43: 0.936122666 | K43: =IF(B43="","",1-(1-VLOOKUP(C43,Mortality!$F$4:$H$105,IF(Gender="M",2,3)))^(1/12)) -> 0.0008800699061 | L43: =IF(B43="","",1-(1-VLOOKUP(H43,Lapse!$B$3:$C$43,2))^(1/12)) -> 0.005143012832 | M43: 0.7272564659 | N43: 26.75890411 | O43: 319635.8496 | P43: 0 | Q43: 0 | R43: 17287488.8 | S43: 11387769.03
A44: 2026-05-31 | B44: 56.33995434 | C44: 56 | D44: 0 | E44: 6 | F44: 2027 | G44: 6 | H44: 4 | I44: 41 | J44: 0.9345791326 | K44: =IF(B44="","",1-(1-VLOOKUP(C44,Mortality!$F$4:$H$105,IF(Gender="M",2,3)))^(1/12)) -> 0.0008800699061 | L44: =IF(B44="","",1-(1-VLOOKUP(H44,Lapse!$B$3:$C$43,2))^(1/12)) -> 0.005143012832 | M44: 0.7228794317 | N44: 26.84109589 | O44: 319635.8496 | P44: 0 | Q44: 0 | R44: 17316040.5 | S44: 11406576.86
A45: 2026-06-30 | B45: 56.42328767 | C45: 56 | D45: 0 | E45: 7 | F45: 2027 | G45: 7 | H45: 4 | I45: 42 | J45: 0.9330381442 | K45: =IF(B45="","",1-(1-VLOOKUP(C45,Mortality!$F$4:$H$105,IF(Gender="M",2,3)))^(1/12)) -> 0.0008800699061 | L45: =IF(B45="","",1-(1-VLOOKUP(H45,Lapse!$B$3:$C$43,2))^(1/12)) -> 0.005143012832 | M45: 0.718528741 | N45: 26.9260274 | O45: 319635.8496 | P45: 0 | Q45: 0 | R45: 17344639.35 | S45: 11425415.74
A46: 2026-07-31 | B46: 56.506621 | C46: 56 | D46: 0 | E46: 8 | F46: 2027 | G46: 8 | H46: 4 | I46: 43 | J46: 0.9314996968 | K46: =IF(B46="","",1-(1-VLOOKUP(C46,Mortality!$F$4:$H$105,IF(Gender="M",2,3)))^(1/12)) -> 0.0008800699061 | L46: =IF(B46="","",1-(1-VLOOKUP(H46,Lapse!$B$3:$C$43,2))^(1/12)) -> 0.005143012832 | M46: 0.7142042352 | N46: 27.0109589 | O46: 319635.8496 | P46: 0 | Q46: 0 | R46: 17373285.43 | S46: 11444285.75
A47: 2026-08-31 | B47: 56.58995434 | C47: 56 | D47: 0 | E47: 9 | F47: 2027 | G47: 9 | H47: 4 | I47: 44 | J47: 0.929963786 | K47: =IF(B47="","",1-(1-VLOOKUP(C47,Mortality!$F$4:$H$105,IF(Gender="M",2,3)))^(1/12)) -> 0.0008800699061 | L47: =IF(B47="","",1-(1-VLOOKUP(H47,Lapse!$B$3:$C$43,2))^(1/12)) -> 0.005143012832 | M47: 0.7099057566 | N47: 27.09315068 | O47: 319635.8496 | P47: 0 | Q47: 0 | R47: 17401978.82 | S47: 11463186.92
A48: 2026-09-30 | B48: 56.67328767 | C48: 56 | D48: 0 | E48: 10 | F48: 2027 | G48: 10 | H48: 4 | I48: 45 | J48: 0.9284304077 | K48: =IF(B48="","",1-(1-VLOOKUP(C48,Mortality!$F$4:$H$105,IF(Gender="M",2,3)))^(1/12)) -> 0.0008800699061 | L48: =IF(B48="","",1-(1-VLOOKUP(H48,Lapse!$B$3:$C$43,2))^(1/12)) -> 0.005143012832 | M48: 0.7056331487 | N48: 27.17808219 | O48: 319635.8496 | P48: 0 | Q48: 0 | R48: 17430719.6 | S48: 11482119.3
A49: 2026-10-31 | B49: 56.756621 | C49: 56 | D49: 0 | E49: 11 | F49: 2027 | G49: 11 | H49: 4 | I49: 46 | J49: 0.9268995577 | K49: =IF(B49="","",1-(1-VLOOKUP(C49,Mortality!$F$4:$H$105,IF(Gender="M",2,3)))^(1/12)) -> 0.0008800699061 | L49: =IF(B49="","",1-(1-VLOOKUP(H49,Lapse!$B$3:$C$43,2))^(1/12)) -> 0.005143012832 | M49: 0.7013862557 | N49: 27.26027397 | O49: 319635.8496 | P49: 0 | Q49: 0 | R49: 17459507.86 | S49: 11501082.95
A50: 2026-11-30 | B50: 56.83995434 | C50: 56 | D50: 0 | E50: 12 | F50: 2027 | G50: 12 | H50: 4 | I50: 47 | J50: 0.9253712319 | K50: =IF(B50="","",1-(1-VLOOKUP(C50,Mortality!$F$4:$H$105,IF(Gender="M",2,3)))^(1/12)) -> 0.0008800699061 | L50: =IF(B50="","",1-(1-VLOOKUP(H50,Lapse!$B$3:$C$43,2))^(1/12)) -> 0.005143012832 | M50: 0.6971649229 | N50: 27.34520548 | O50: 319635.8496 | P50: 0 | Q50: 0 | R50: 17488343.65 | S50: 11520077.93
A51: 2026-12-31 | B51: 56.92328767 | C51: 56 | D51: 0 | E51: 1 | F51: 2028 | G51: 1 | H51: 5 | I51: 48 | J51: 0.923845426 | K51: =IF(B51="","",1-(1-VLOOKUP(C51,Mortality!$F$4:$H$105,IF(Gender="M",2,3)))^(1/12)) -> 0.0008800699061 | L51: =IF(B51="","",1-(1-VLOOKUP(H51,Lapse!$B$3:$C$43,2))^(1/12)) -> 0.004265318778 | M51: 0.6935803554 | N51: 27.43013699 | O51: 326028.5666 | P51: 0 | Q51: 0 | R51: 17517227.07 | S51: 11539104.27
A52: 2027-01-31 | B52: 57.006621 | C52: 57 | D52: 0 | E52: 2 | F52: 2028 | G52: 2 | H52: 5 | I52: 49 | J52: 0.922322136 | K52: =IF(B52="","",1-(1-VLOOKUP(C52,Mortality!$F$4:$H$105,IF(Gender="M",2,3)))^(1/12)) -> 0.0009507878336 | L52: =IF(B52="","",1-(1-VLOOKUP(H52,Lapse!$B$3:$C$43,2))^(1/12)) -> 0.004265318778 | M52: 0.689965379 | N52: 27.50958904 | O52: 326028.5666 | P52: 0 | Q52: 0 | R52: 17546158.2 | S52: 11558162.04
A53: 2027-02-28 | B53: 57.08995434 | C53: 57 | D53: 0 | E53: 3 | F53: 2028 | G53: 3 | H53: 5 | I53: 50 | J53: 0.9208013577 | K53: =IF(B53="","",1-(1-VLOOKUP(C53,Mortality!$F$4:$H$105,IF(Gender="M",2,3)))^(1/12)) -> 0.0009507878336 | L53: =IF(B53="","",1-(1-VLOOKUP(H53,Lapse!$B$3:$C$43,2))^(1/12)) -> 0.004265318778 | M53: 0.6863692442 | N53: 27.59452055 | O53: 326028.5666 | P53: 0 | Q53: 0 | R53: 17575137.11 | S53: 11577251.29
A54: 2027-03-31 | B54: 57.17328767 | C54: 57 | D54: 0 | E54: 4 | F54: 2028 | G54: 4 | H54: 5 | I54: 51 | J54: 0.919283087 | K54: =IF(B54="","",1-(1-VLOOKUP(C54,Mortality!$F$4:$H$105,IF(Gender="M",2,3)))^(1/12)) -> 0.0009507878336 | L54: =IF(B54="","",1-(1-VLOOKUP(H54,Lapse!$B$3:$C$43,2))^(1/12)) -> 0.004265318778 | M54: 0.6827918525 | N54: 27.67671233 | O54: 326028.5666 | P54: 0 | Q54: 0 | R54: 17604163.87 | S54: 11596372.06
A55: 2027-04-30 | B55: 57.256621 | C55: 57 | D55: 0 | E55: 5 | F55: 2028 | G55: 5 | H55: 5 | I55: 52 | J55: 0.9177673196 | K55: =IF(B55="","",1-(1-VLOOKUP(C55,Mortality!$F$4:$H$105,IF(Gender="M",2,3)))^(1/12)) -> 0.0009507878336 | L55: =IF(B55="","",1-(1-VLOOKUP(H55,Lapse!$B$3:$C$43,2))^(1/12)) -> 0.004265318778 | M55: 0.6792331064 | N55: 27.76164384 | O55: 326028.5666 | P55: 0 | Q55: 0 | R55: 17633238.58 | S55: 11615524.41
A56: 2027-05-31 | B56: 57.33995434 | C56: 57 | D56: 0 | E56: 6 | F56: 2028 | G56: 6 | H56: 5 | I56: 53 | J56: 0.9162540516 | K56: =IF(B56="","",1-(1-VLOOKUP(C56,Mortality!$F$4:$H$105,IF(Gender="M",2,3)))^(1/12)) -> 0.0009507878336 | L56: =IF(B56="","",1-(1-VLOOKUP(H56,Lapse!$B$3:$C$43,2))^(1/12)) -> 0.004265318778 | M56: 0.6756929087 | N56: 27.84383562 | O56: 326028.5666 | P56: 0 | Q56: 0 | R56: 17662361.31 | S56: 11634708.39
A57: 2027-06-30 | B57: 57.42328767 | C57: 57 | D57: 0 | E57: 7 | F57: 2028 | G57: 7 | H57: 5 | I57: 54 | J57: 0.9147432787 | K57: =IF(B57="","",1-(1-VLOOKUP(C57,Mortality!$F$4:$H$105,IF(Gender="M",2,3)))^(1/12)) -> 0.0009507878336 | L57: =IF(B57="","",1-(1-VLOOKUP(H57,Lapse!$B$3:$C$43,2))^(1/12)) -> 0.004265318778 | M57: 0.6721711627 | N57: 27.92876712 | O57: 326028.5666 | P57: 0 | Q57: 0 | R57: 17691532.13 | S57: 11653924.06
A58: 2027-07-31 | B58: 57.506621 | C58: 57 | D58: 0 | E58: 8 | F58: 2028 | G58: 8 | H58: 5 | I58: 55 | J58: 0.9132349968 | K58: =IF(B58="","",1-(1-VLOOKUP(C58,Mortality!$F$4:$H$105,IF(Gender="M",2,3)))^(1/12)) -> 0.0009507878336 | L58: =IF(B58="","",1-(1-VLOOKUP(H58,Lapse!$B$3:$C$43,2))^(1/12)) -> 0.004265318778 | M58: 0.6686677722 | N58: 28.01369863 | O58: 326028.5666 | P58: 0 | Q58: 0 | R58: 17720751.14 | S58: 11673171.46
A59: 2027-08-31 | B59: 57.58995434 | C59: 57 | D59: 0 | E59: 9 | F59: 2028 | G59: 9 | H59: 5 | I59: 56 | J59: 0.9117292019 | K59: =IF(B59="","",1-(1-VLOOKUP(C59,Mortality!$F$4:$H$105,IF(Gender="M",2,3)))^(1/12)) -> 0.0009507878336 | L59: =IF(B59="","",1-(1-VLOOKUP(H59,Lapse!$B$3:$C$43,2))^(1/12)) -> 0.004265318778 | M59: 0.6651826415 | N59: 28.09589041 | O59: 326028.5666 | P59: 0 | Q59: 0 | R59: 17750018.4 | S59: 11692450.65
A60: 2027-09-30 | B60: 57.67328767 | C60: 57 | D60: 0 | E60: 10 | F60: 2028 | G60: 10 | H60: 5 | I60: 57 | J60: 0.9102258899 | K60: =IF(B60="","",1-(1-VLOOKUP(C60,Mortality!$F$4:$H$105,IF(Gender="M",2,3)))^(1/12)) -> 0.0009507878336 | L60: =IF(B60="","",1-(1-VLOOKUP(H60,Lapse!$B$3:$C$43,2))^(1/12)) -> 0.004265318778 | M60: 0.6617156755 | N60: 28.18082192 | O60: 326028.5666 | P60: 0 | Q60: 0 | R60: 17779334 | S60: 11711761.69
A61: 2027-10-31 | B61: 57.756621 | C61: 57 | D61: 0 | E61: 11 | F61: 2028 | G61: 11 | H61: 5 | I61: 58 | J61: 0.9087250566 | K61: =IF(B61="","",1-(1-VLOOKUP(C61,Mortality!$F$4:$H$105,IF(Gender="M",2,3)))^(1/12)) -> 0.0009507878336 | L61: =IF(B61="","",1-(1-VLOOKUP(H61,Lapse!$B$3:$C$43,2))^(1/12)) -> 0.004265318778 | M61: 0.6582667795 | N61: 28.2630137 | O61: 326028.5666 | P61: 0 | Q61: 0 | R61: 17808698.01 | S61: 11731104.61
A62: 2027-11-30 | B62: 57.83995434 | C62: 57 | D62: 0 | E62: 12 | F62: 2028 | G62: 12 | H62: 5 | I62: 59 | J62: 0.9072266979 | K62: =IF(B62="","",1-(1-VLOOKUP(C62,Mortality!$F$4:$H$105,IF(Gender="M",2,3)))^(1/12)) -> 0.0009507878336 | L62: =IF(B62="","",1-(1-VLOOKUP(H62,Lapse!$B$3:$C$43,2))^(1/12)) -> 0.004265318778 | M62: 0.6548358594 | N62: 28.34794521 | O62: 326028.5666 | P62: 0 | Q62: 0 | R62: 17838110.53 | S62: 11750479.49
A63: 2027-12-31 | B63: 57.92328767 | C63: 57 | D63: 0 | E63: 1 | F63: 2029 | G63: 1 | H63: 6 | I63: 60 | J63: 0.9057308098 | K63: =IF(B63="","",1-(1-VLOOKUP(C63,Mortality!$F$4:$H$105,IF(Gender="M",2,3)))^(1/12)) -> 0.0009507878336 | L63: =IF(B63="","",1-(1-VLOOKUP(H63,Lapse!$B$3:$C$43,2))^(1/12)) -> 0.003396053199 | M63: 0.6519915064 | N63: 28.43287671 | O63: 332549.1379 | P63: 0 | Q63: 0 | R63: 17867571.62 | S63: 11769886.36
A64: 2028-01-31 | B64: 58.006621 | C64: 58 | D64: 0 | E64: 2 | F64: 2029 | G64: 2 | H64: 6 | I64: 61 | J64: 0.9042373883 | K64: =IF(B64="","",1-(1-VLOOKUP(C64,Mortality!$F$4:$H$105,IF(Gender="M",2,3)))^(1/12)) -> 0.0010295402 | L64: =IF(B64="","",1-(1-VLOOKUP(H64,Lapse!$B$3:$C$43,2))^(1/12)) -> 0.003396053199 | M64: 0.6491083367 | N64: 28.50958904 | O64: 332549.1379 | P64: 0 | Q64: 0 | R64: 17897081.36 | S64: 11789325.28
A65: 2028-02-29 | B65: 58.08995434 | C65: 58 | D65: 0 | E65: 3 | F65: 2029 | G65: 3 | H65: 6 | I65: 62 | J65: 0.9027464291 | K65: =IF(B65="","",1-(1-VLOOKUP(C65,Mortality!$F$4:$H$105,IF(Gender="M",2,3)))^(1/12)) -> 0.0010295402 | L65: =IF(B65="","",1-(1-VLOOKUP(H65,Lapse!$B$3:$C$43,2))^(1/12)) -> 0.003396053199 | M65: 0.6462379167 | N65: 28.59452055 | O65: 332549.1379 | P65: 0 | Q65: 0 | R65: 17926639.85 | S65: 11808796.31
A66: 2028-03-31 | B66: 58.17328767 | C66: 58 | D66: 0 | E66: 4 | F66: 2029 | G66: 4 | H66: 6 | I66: 63 | J66: 0.9012579284 | K66: =IF(B66="","",1-(1-VLOOKUP(C66,Mortality!$F$4:$H$105,IF(Gender="M",2,3)))^(1/12)) -> 0.0010295402 | L66: =IF(B66="","",1-(1-VLOOKUP(H66,Lapse!$B$3:$C$43,2))^(1/12)) -> 0.003396053199 | M66: 0.6433801899 | N66: 28.67671233 | O66: 332549.1379 | P66: 0 | Q66: 0 | R66: 17956247.15 | S66: 11828299.5
A67: 2028-04-30 | B67: 58.256621 | C67: 58 | D67: =IF(C67="","",IF(C67>=Retire_age,1,0)) -> 0 | E67: 5 | F67: 2029 | G67: 5 | H67: 6 | I67: 64 | J67: 0.899771882 | K67: =IF(B67="","",1-(1-VLOOKUP(C67,Mortality!$F$4:$H$105,IF(Gender="M",2,3)))^(1/12)) -> 0.0010295402 | L67: =IF(B67="","",1-(1-VLOOKUP(H67,Lapse!$B$3:$C$43,2))^(1/12)) -> 0.003396053199 | M67: 0.6405351003 | N67: =IF(B67="","",IF(retire_indicator=1,N66,MIN(YEARFRAC(DATE(Calender_year,Calender_month+1,0),Joined_date,3),Max_Schem_Service))) -> 28.76164384 | O67: =IF(B67="","",IF(retire_indicator=1,O66,Monthly_Salary*(1+Sal_increase_rate_pa)^(Calender_year-YEAR(Val_Date)-1))) -> 332549.1379 | P67: =IF(B67="","",IF(retire_indicator=1, Pension_factor*Scheme_service*Salary_PP*(1+Pension_increase_rate_pa)^(Calender_year-YEAR(Val_Date)-1),0)) -> 0 | Q67: =IF(B67="","",M66*Pension_PP) -> 0 | R67: =IF(B67="",0,Pension_CF+R68/(1+Disc_Rate_Month)) -> 17985903.35 | S67: =PVCF*current_service/except_service -> 11847834.9
A68: =IF(B68="","",EOMONTH(A67,1)) -> 2028-05-31 | B68: =IF(B67="","", IF(B67+1/12>Max_age,"",B67+1/12)) -> 58.33995434 | C68: =IF(B68="","",INT(B68)) -> 58 | D68: 0 | E68: 6 | F68: 2029 | G68: 6 | H68: 6 | I68: =IF(B68="","",I67+1) -> 65 | J68: =IF(B68="","",(1+Disc_Rate_Month)^(-I68)) -> 0.8982882858 | K68: =IF(B68="","",1-(1-VLOOKUP(C68,Mortality!$F$4:$H$105,IF(Gender="M",2,3)))^(1/12)) -> 0.0010295402 | L68: =IF(B68="","",1-(1-VLOOKUP(H68,Lapse!$B$3:$C$43,2))^(1/12)) -> 0.003396053199 | M68: =IF(B68="","",M67*(1-K68)*(1-L68)) -> 0.6377025919 | N68: 28.84383562 | O68: 332549.1379 | P68: 0 | Q68: 0 | R68: 18015608.53 | S68: 11867402.56
A69: 2028-06-30 | B69: 58.42328767 | C69: 58 | D69: 0 | E69: =IF(B69="","",IF(E68=12,1,E68+1)) -> 7 | F69: =IF(B69="","",IF(E68=12,F68+1,F68)) -> 2029 | G69: =IF(B69="","",IF(G68=12,1,G68+1)) -> 7 | H69: =IF(B69="","",IF(G68=12,H68+1,H68)) -> 6 | I69: 66 | J69: 0.896807136 | K69: =IF(B69="","",1-(1-VLOOKUP(C69,Mortality!$F$4:$H$105,IF(Gender="M",2,3)))^(1/12)) -> 0.0010295402 | L69: =IF(B69="","",1-(1-VLOOKUP(H69,Lapse!$B$3:$C$43,2))^(1/12)) -> 0.003396053199 | M69: 0.6348826092 | N69: 28.92876712 | O69: 332549.1379 | P69: 0 | Q69: 0 | R69: 18045362.78 | S69: 11887002.54
A70: 2028-07-31 | B70: 58.506621 | C70: 58 | D70: 0 | E70: 8 | F70: 2029 | G70: 8 | H70: 6 | I70: 67 | J70: 0.8953284283 | K70: =IF(B70="","",1-(1-VLOOKUP(C70,Mortality!$F$4:$H$105,IF(Gender="M",2,3)))^(1/12)) -> 0.0010295402 | L70: =IF(B70="","",1-(1-VLOOKUP(H70,Lapse!$B$3:$C$43,2))^(1/12)) -> 0.003396053199 | M70: 0.6320750967 | N70: 29.01369863 | O70: 332549.1379 | P70: 0 | Q70: 0 | R70: 18075166.16 | S70: 11906634.89
A71: 2028-08-31 | B71: 58.58995434 | C71: 58 | D71: 0 | E71: 9 | F71: 2029 | G71: 9 | H71: 6 | I71: 68 | J71: 0.8938521587 | K71: =IF(B71="","",1-(1-VLOOKUP(C71,Mortality!$F$4:$H$105,IF(Gender="M",2,3)))^(1/12)) -> 0.0010295402 | L71: =IF(B71="","",1-(1-VLOOKUP(H71,Lapse!$B$3:$C$43,2))^(1/12)) -> 0.003396053199 | M71: 0.6292799993 | N71: 29.09589041 | O71: 332549.1379 | P71: 0 | Q71: 0 | R71: 18105018.77 | S71: 11926299.67
A72: 2028-09-30 | B72: 58.67328767 | C72: 58 | D72: 0 | E72: 10 | F72: 2029 | G72: 10 | H72: 6 | I72: 69 | J72: 0.8923783234 | K72: =IF(B72="","",1-(1-VLOOKUP(C72,Mortality!$F$4:$H$105,IF(Gender="M",2,3)))^(1/12)) -> 0.0010295402 | L72: =IF(B72="","",1-(1-VLOOKUP(H72,Lapse!$B$3:$C$43,2))^(1/12)) -> 0.003396053199 | M72: 0.6264972621 | N72: 29.18082192 | O72: 332549.1379 | P72: 0 | Q72: 0 | R72: 18134920.68 | S72: 11945996.92
A73: 2028-10-31 | B73: 58.756621 | C73: 58 | D73: 0 | E73: 11 | F73: 2029 | G73: 11 | H73: 6 | I73: 70 | J73: 0.8909069182 | K73: =IF(B73="","",1-(1-VLOOKUP(C73,Mortality!$F$4:$H$105,IF(Gender="M",2,3)))^(1/12)) -> 0.0010295402 | L73: =IF(B73="","",1-(1-VLOOKUP(H73,Lapse!$B$3:$C$43,2))^(1/12)) -> 0.003396053199 | M73: 0.6237268304 | N73: 29.2630137 | O73: 332549.1379 | P73: 0 | Q73: 0 | R73: 18164871.97 | S73: 11965726.71
A74: 2028-11-30 | B74: 58.83995434 | C74: 58 | D74: 0 | E74: 12 | F74: 2029 | G74: 12 | H74: 6 | I74: 71 | J74: 0.8894379391 | K74: =IF(B74="","",1-(1-VLOOKUP(C74,Mortality!$F$4:$H$105,IF(Gender="M",2,3)))^(1/12)) -> 0.0010295402 | L74: =IF(B74="","",1-(1-VLOOKUP(H74,Lapse!$B$3:$C$43,2))^(1/12)) -> 0.003396053199 | M74: 0.6209686498 | N74: 29.34794521 | O74: 332549.1379 | P74: 0 | Q74: 0 | R74: 18194872.74 | S74: 11985489.08
A75: 2028-12-31 | B75: 58.92328767 | C75: 58 | D75: 0 | E75: 1 | F75: 2030 | G75: 1 | H75: 7 | I75: 72 | J75: 0.8879713822 | K75: =IF(B75="","",1-(1-VLOOKUP(C75,Mortality!$F$4:$H$105,IF(Gender="M",2,3)))^(1/12)) -> 0.0010295402 | L75: =IF(B75="","",1-(1-VLOOKUP(H75,Lapse!$B$3:$C$43,2))^(1/12)) -> 0.002535048614 | M75: 0.6187567726 | N75: 29.43287671 | O75: 339200.1207 | P75: 0 | Q75: 0 | R75: 18224923.05 | S75: 12005284.09
A76: 2029-01-31 | B76: 59.006621 | C76: 59 | D76: 0 | E76: 2 | F76: 2030 | G76: 2 | H76: 7 | I76: 73 | J76: 0.8865072434 | K76: =IF(B76="","",1-(1-VLOOKUP(C76,Mortality!$F$4:$H$105,IF(Gender="M",2,3)))^(1/12)) -> 0.001114006376 | L76: =IF(B76="","",1-(1-VLOOKUP(H76,Lapse!$B$3:$C$43,2))^(1/12)) -> 0.002535048614 | M76: 0.6165006425 | N76: 29.50958904 | O76: 339200.1207 | P76: 0 | Q76: 0 | R76: 18255022.99 | S76: 12025111.79
A77: 2029-02-28 | B77: 59.08995434 | C77: 59 | D77: 0 | E77: 3 | F77: 2030 | G77: 3 | H77: 7 | I77: 74 | J77: 0.8850455188 | K77: =IF(B77="","",1-(1-VLOOKUP(C77,Mortality!$F$4:$H$105,IF(Gender="M",2,3)))^(1/12)) -> 0.001114006376 | L77: =IF(B77="","",1-(1-VLOOKUP(H77,Lapse!$B$3:$C$43,2))^(1/12)) -> 0.002535048614 | M77: 0.6142527388 | N77: 29.59452055 | O77: 339200.1207 | P77: 0 | Q77: 0 | R77: 18285172.64 | S77: 12044972.24
A78: 2029-03-31 | B78: 59.17328767 | C78: 59 | D78: 0 | E78: 4 | F78: 2030 | G78: 4 | H78: 7 | I78: 75 | J78: 0.8835862043 | K78: =IF(B78="","",1-(1-VLOOKUP(C78,Mortality!$F$4:$H$105,IF(Gender="M",2,3)))^(1/12)) -> 0.001114006376 | L78: =IF(B78="","",1-(1-VLOOKUP(H78,Lapse!$B$3:$C$43,2))^(1/12)) -> 0.002535048614 | M78: 0.6120130315 | N78: 29.67671233 | O78: 339200.1207 | P78: 0 | Q78: 0 | R78: 18315372.09 | S78: 12064865.49
A79: 2029-04-30 | B79: 59.256621 | C79: 59 | D79: 0 | E79: 5 | F79: 2030 | G79: 5 | H79: 7 | I79: 76 | J79: 0.8821292961 | K79: =IF(B79="","",1-(1-VLOOKUP(C79,Mortality!$F$4:$H$105,IF(Gender="M",2,3)))^(1/12)) -> 0.001114006376 | L79: =IF(B79="","",1-(1-VLOOKUP(H79,Lapse!$B$3:$C$43,2))^(1/12)) -> 0.002535048614 | M79: 0.6097814906 | N79: 29.76164384 | O79: 339200.1207 | P79: 0 | Q79: 0 | R79: 18345621.42 | S79: 12084791.6
A80: 2029-05-31 | B80: 59.33995434 | C80: 59 | D80: 0 | E80: 6 | F80: 2030 | G80: 6 | H80: 7 | I80: 77 | J80: 0.88067479 | K80: =IF(B80="","",1-(1-VLOOKUP(C80,Mortality!$F$4:$H$105,IF(Gender="M",2,3)))^(1/12)) -> 0.001114006376 | L80: =IF(B80="","",1-(1-VLOOKUP(H80,Lapse!$B$3:$C$43,2))^(1/12)) -> 0.002535048614 | M80: 0.6075580865 | N80: 29.84383562 | O80: 339200.1207 | P80: 0 | Q80: 0 | R80: 18375920.7 | S80: 12104750.61
A81: 2029-06-30 | B81: 59.42328767 | C81: 59 | D81: 0 | E81: 7 | F81: 2030 | G81: 7 | H81: 7 | I81: 78 | J81: 0.8792226823 | K81: =IF(B81="","",1-(1-VLOOKUP(C81,Mortality!$F$4:$H$105,IF(Gender="M",2,3)))^(1/12)) -> 0.001114006376 | L81: =IF(B81="","",1-(1-VLOOKUP(H81,Lapse!$B$3:$C$43,2))^(1/12)) -> 0.002535048614 | M81: 0.6053427894 | N81: 29.92876712 | O81: 339200.1207 | P81: 0 | Q81: 0 | R81: 18406270.03 | S81: 12124742.59
A82: 2029-07-31 | B82: 59.506621 | C82: 59 | D82: 0 | E82: 8 | F82: 2030 | G82: 8 | H82: 7 | I82: 79 | J82: 0.8777729689 | K82: =IF(B82="","",1-(1-VLOOKUP(C82,Mortality!$F$4:$H$105,IF(Gender="M",2,3)))^(1/12)) -> 0.001114006376 | L82: =IF(B82="","",1-(1-VLOOKUP(H82,Lapse!$B$3:$C$43,2))^(1/12)) -> 0.002535048614 | M82: 0.6031355698 | N82: 30.01369863 | O82: 339200.1207 | P82: 0 | Q82: 0 | R82: 18436669.48 | S82: 12144767.59
A83: 2029-08-31 | B83: 59.58995434 | C83: 59 | D83: 0 | E83: 9 | F83: 2030 | G83: 9 | H83: 7 | I83: 80 | J83: 0.8763256458 | K83: =IF(B83="","",1-(1-VLOOKUP(C83,Mortality!$F$4:$H$105,IF(Gender="M",2,3)))^(1/12)) -> 0.001114006376 | L83: =IF(B83="","",1-(1-VLOOKUP(H83,Lapse!$B$3:$C$43,2))^(1/12)) -> 0.002535048614 | M83: 0.6009363982 | N83: 30.09589041 | O83: 339200.1207 | P83: 0 | Q83: 0 | R83: 18467119.14 | S83: 12164825.66
A84: 2029-09-30 | B84: 59.67328767 | C84: 59 | D84: 0 | E84: 10 | F84: 2030 | G84: 10 | H84: 7 | I84: 81 | J84: 0.8748807092 | K84: =IF(B84="","",1-(1-VLOOKUP(C84,Mortality!$F$4:$H$105,IF(Gender="M",2,3)))^(1/12)) -> 0.001114006376 | L84: =IF(B84="","",1-(1-VLOOKUP(H84,Lapse!$B$3:$C$43,2))^(1/12)) -> 0.002535048614 | M84: 0.5987452454 | N84: 30.18082192 | O84: 339200.1207 | P84: 0 | Q84: 0 | R84: 18497619.09 | S84: 12184916.86
A85: 2029-10-31 | B85: 59.756621 | C85: 59 | D85: 0 | E85: 11 | F85: 2030 | G85: 11 | H85: 7 | I85: 82 | J85: 0.8734381551 | K85: =IF(B85="","",1-(1-VLOOKUP(C85,Mortality!$F$4:$H$105,IF(Gender="M",2,3)))^(1/12)) -> 0.001114006376 | L85: =IF(B85="","",1-(1-VLOOKUP(H85,Lapse!$B$3:$C$43,2))^(1/12)) -> 0.002535048614 | M85: 0.5965620819 | N85: 30.2630137 | O85: 339200.1207 | P85: 0 | Q85: 0 | R85: 18528169.41 | S85: 12205041.24
A86: 2029-11-30 | B86: 59.83995434 | C86: 59 | D86: 0 | E86: 12 | F86: 2030 | G86: 12 | H86: 7 | I86: 83 | J86: 0.8719979795 | K86: =IF(B86="","",1-(1-VLOOKUP(C86,Mortality!$F$4:$H$105,IF(Gender="M",2,3)))^(1/12)) -> 0.001114006376 | L86: =IF(B86="","",1-(1-VLOOKUP(H86,Lapse!$B$3:$C$43,2))^(1/12)) -> 0.002535048614 | M86: 0.5943868788 | N86: 30.34794521 | O86: 339200.1207 | P86: 0 | Q86: 0 | R86: 18558770.19 | S86: 12225198.86
A87: 2029-12-31 | B87: 59.92328767 | C87: 59 | D87: 0 | E87: 1 | F87: 2031 | G87: 1 | H87: 8 | I87: 84 | J87: 0.8705601786 | K87: =IF(B87="","",1-(1-VLOOKUP(C87,Mortality!$F$4:$H$105,IF(Gender="M",2,3)))^(1/12)) -> 0.001114006376 | L87: =IF(B87="","",1-(1-VLOOKUP(H87,Lapse!$B$3:$C$43,2))^(1/12)) -> 0.001682142553 | M87: 0.5927259984 | N87: 30.43287671 | O87: 345984.1231 | P87: 0 | Q87: 0 | R87: 18589421.51 | S87: 12245389.77
A88: 2030-01-31 | B88: 60.006621 | C88: 60 | D88: 0 | E88: 2 | F88: 2031 | G88: 2 | H88: 8 | I88: 85 | J88: 0.8691247484 | K88: =IF(B88="","",1-(1-VLOOKUP(C88,Mortality!$F$4:$H$105,IF(Gender="M",2,3)))^(1/12)) -> 0.001203034146 | L88: =IF(B88="","",1-(1-VLOOKUP(H88,Lapse!$B$3:$C$43,2))^(1/12)) -> 0.001682142553 | M88: 0.5910170787 | N88: 30.50958904 | O88: 345984.1231 | P88: 0 | Q88: 0 | R88: 18620123.45 | S88: 12265614.02
A89: 2030-02-28 | B89: 60.08995434 | C89: 60 | D89: 0 | E89: 3 | F89: 2031 | G89: 3 | H89: 8 | I89: 86 | J89: 0.8676916851 | K89: =IF(B89="","",1-(1-VLOOKUP(C89,Mortality!$F$4:$H$105,IF(Gender="M",2,3)))^(1/12)) -> 0.001203034146 | L89: =IF(B89="","",1-(1-VLOOKUP(H89,Lapse!$B$3:$C$43,2))^(1/12)) -> 0.001682142553 | M89: 0.589313086 | N89: 30.59452055 | O89: 345984.1231 | P89: 0 | Q89: 0 | R89: 18650876.1 | S89: 12285871.68
A90: 2030-03-31 | B90: 60.17328767 | C90: 60 | D90: 0 | E90: 4 | F90: 2031 | G90: 4 | H90: 8 | I90: 87 | J90: 0.8662609846 | K90: =IF(B90="","",1-(1-VLOOKUP(C90,Mortality!$F$4:$H$105,IF(Gender="M",2,3)))^(1/12)) -> 0.001203034146 | L90: =IF(B90="","",1-(1-VLOOKUP(H90,Lapse!$B$3:$C$43,2))^(1/12)) -> 0.001682142553 | M90: 0.5876140062 | N90: 30.67671233 | O90: 345984.1231 | P90: 0 | Q90: 0 | R90: 18681679.54 | S90: 12306162.8
A91: 2030-04-30 | B91: 60.256621 | C91: 60 | D91: 0 | E91: 5 | F91: 2031 | G91: 5 | H91: 8 | I91: 88 | J91: 0.8648326432 | K91: =IF(B91="","",1-(1-VLOOKUP(C91,Mortality!$F$4:$H$105,IF(Gender="M",2,3)))^(1/12)) -> 0.001203034146 | L91: =IF(B91="","",1-(1-VLOOKUP(H91,Lapse!$B$3:$C$43,2))^(1/12)) -> 0.001682142553 | M91: 0.5859198251 | N91: 30.76164384 | O91: 345984.1231 | P91: 0 | Q91: 0 | R91: 18712533.85 | S91: 12326487.43
A92: 2030-05-31 | B92: 60.33995434 | C92: 60 | D92: 0 | E92: 6 | F92: 2031 | G92: 6 | H92: 8 | I92: 89 | J92: 0.8634066569 | K92: =IF(B92="","",1-(1-VLOOKUP(C92,Mortality!$F$4:$H$105,IF(Gender="M",2,3)))^(1/12)) -> 0.001203034146 | L92: =IF(B92="","",1-(1-VLOOKUP(H92,Lapse!$B$3:$C$43,2))^(1/12)) -> 0.001682142553 | M92: 0.5842305286 | N92: 30.84383562 | O92: 345984.1231 | P92: 0 | Q92: 0 | R92: 18743439.12 | S92: 12346845.62
A93: 2030-06-30 | B93: 60.42328767 | C93: 60 | D93: 0 | E93: 7 | F93: 2031 | G93: 7 | H93: 8 | I93: 90 | J93: 0.8619830219 | K93: =IF(B93="","",1-(1-VLOOKUP(C93,Mortality!$F$4:$H$105,IF(Gender="M",2,3)))^(1/12)) -> 0.001203034146 | L93: =IF(B93="","",1-(1-VLOOKUP(H93,Lapse!$B$3:$C$43,2))^(1/12)) -> 0.001682142553 | M93: 0.5825461025 | N93: 30.92876712 | O93: 345984.1231 | P93: 0 | Q93: 0 | R93: 18774395.43 | S93: 12367237.44
A94: 2030-07-31 | B94: 60.506621 | C94: 60 | D94: 0 | E94: 8 | F94: 2031 | G94: 8 | H94: 8 | I94: 91 | J94: 0.8605617342 | K94: =IF(B94="","",1-(1-VLOOKUP(C94,Mortality!$F$4:$H$105,IF(Gender="M",2,3)))^(1/12)) -> 0.001203034146 | L94: =IF(B94="","",1-(1-VLOOKUP(H94,Lapse!$B$3:$C$43,2))^(1/12)) -> 0.001682142553 | M94: 0.580866533 | N94: 31.01369863 | O94: 345984.1231 | P94: 0 | Q94: 0 | R94: 18805402.87 | S94: 12387662.94
A95: 2030-08-31 | B95: 60.58995434 | C95: 60 | D95: 0 | E95: 9 | F95: 2031 | G95: 9 | H95: 8 | I95: 92 | J95: 0.85914279 | K95: =IF(B95="","",1-(1-VLOOKUP(C95,Mortality!$F$4:$H$105,IF(Gender="M",2,3)))^(1/12)) -> 0.001203034146 | L95: =IF(B95="","",1-(1-VLOOKUP(H95,Lapse!$B$3:$C$43,2))^(1/12)) -> 0.001682142553 | M95: 0.5791918059 | N95: 31.09589041 | O95: 345984.1231 | P95: 0 | Q95: 0 | R95: 18836461.52 | S95: 12408122.17
A96: 2030-09-30 | B96: 60.67328767 | C96: 60 | D96: 0 | E96: 10 | F96: 2031 | G96: 10 | H96: 8 | I96: 93 | J96: 0.8577261855 | K96: =IF(B96="","",1-(1-VLOOKUP(C96,Mortality!$F$4:$H$105,IF(Gender="M",2,3)))^(1/12)) -> 0.001203034146 | L96: =IF(B96="","",1-(1-VLOOKUP(H96,Lapse!$B$3:$C$43,2))^(1/12)) -> 0.001682142553 | M96: 0.5775219073 | N96: 31.18082192 | O96: 345984.1231 | P96: 0 | Q96: 0 | R96: 18867571.47 | S96: 12428615.2
A97: 2030-10-31 | B97: 60.756621 | C97: 60 | D97: 0 | E97: 11 | F97: 2031 | G97: 11 | H97: 8 | I97: 94 | J97: 0.8563119168 | K97: =IF(B97="","",1-(1-VLOOKUP(C97,Mortality!$F$4:$H$105,IF(Gender="M",2,3)))^(1/12)) -> 0.001203034146 | L97: =IF(B97="","",1-(1-VLOOKUP(H97,Lapse!$B$3:$C$43,2))^(1/12)) -> 0.001682142553 | M97: 0.5758568232 | N97: 31.2630137 | O97: 345984.1231 | P97: 0 | Q97: 0 | R97: 18898732.8 | S97: 12449142.06
A98: 2030-11-30 | B98: 60.83995434 | C98: 60 | D98: 0 | E98: 12 | F98: 2031 | G98: 12 | H98: 8 | I98: 95 | J98: 0.8548999799 | K98: =IF(B98="","",1-(1-VLOOKUP(C98,Mortality!$F$4:$H$105,IF(Gender="M",2,3)))^(1/12)) -> 0.001203034146 | L98: =IF(B98="","",1-(1-VLOOKUP(H98,Lapse!$B$3:$C$43,2))^(1/12)) -> 0.001682142553 | M98: 0.5741965399 | N98: 31.34794521 | O98: 345984.1231 | P98: 0 | Q98: 0 | R98: 18929945.59 | S98: 12469702.83
A99: 2030-12-31 | B99: 60.92328767 | C99: 60 | D99: 0 | E99: 1 | F99: 2032 | G99: 1 | H99: 9 | I99: 96 | J99: 0.8534903712 | K99: =IF(B99="","",1-(1-VLOOKUP(C99,Mortality!$F$4:$H$105,IF(Gender="M",2,3)))^(1/12)) -> 0.001203034146 | L99: =IF(B99="","",1-(1-VLOOKUP(H99,Lapse!$B$3:$C$43,2))^(1/12)) -> 0.001682142553 | M99: 0.5725410434 | N99: 31.43287671 | O99: 352903.8056 | P99: 0 | Q99: 0 | R99: 18961209.94 | S99: 12490297.56
A100: 2031-01-31 | B100: 61.006621 | C100: 61 | D100: 0 | E100: 2 | F100: 2032 | G100: 2 | H100: 9 | I100: 97 | J100: 0.8520830867 | K100: =IF(B100="","",1-(1-VLOOKUP(C100,Mortality!$F$4:$H$105,IF(Gender="M",2,3)))^(1/12)) -> 0.00129261454 | L100: =IF(B100="","",1-(1-VLOOKUP(H100,Lapse!$B$3:$C$43,2))^(1/12)) -> 0.001682142553 | M100: 0.5708391178 | N100: 31.51232877 | O100: 352903.8056 | P100: 0 | Q100: 0 | R100: 18992525.92 | S100: 12510926.3
A101: 2031-02-28 | B101: 61.08995434 | C101: 61 | D101: 0 | E101: 3 | F101: 2032 | G101: 3 | H101: 9 | I101: 98 | J101: 0.8506781226 | K101: =IF(B101="","",1-(1-VLOOKUP(C101,Mortality!$F$4:$H$105,IF(Gender="M",2,3)))^(1/12)) -> 0.00129261454 | L101: =IF(B101="","",1-(1-VLOOKUP(H101,Lapse!$B$3:$C$43,2))^(1/12)) -> 0.001682142553 | M101: 0.5691422513 | N101: 31.59726027 | O101: 352903.8056 | P101: 0 | Q101: 0 | R101: 19023893.62 | S101: 12531589.12
A102: 2031-03-31 | B102: 61.17328767 | C102: 61 | D102: 0 | E102: 4 | F102: 2032 | G102: 4 | H102: 9 | I102: 99 | J102: 0.8492754751 | K102: =IF(B102="","",1-(1-VLOOKUP(C102,Mortality!$F$4:$H$105,IF(Gender="M",2,3)))^(1/12)) -> 0.00129261454 | L102: =IF(B102="","",1-(1-VLOOKUP(H102,Lapse!$B$3:$C$43,2))^(1/12)) -> 0.001682142553 | M102: 0.5674504289 | N102: 31.67945205 | O102: 352903.8056 | P102: 0 | Q102: 0 | R102: 19055313.13 | S102: 12552286.05
A103: 2031-04-30 | B103: 61.256621 | C103: 61 | D103: 0 | E103: 5 | F103: 2032 | G103: 5 | H103: 9 | I103: 100 | J103: 0.8478751404 | K103: =IF(B103="","",1-(1-VLOOKUP(C103,Mortality!$F$4:$H$105,IF(Gender="M",2,3)))^(1/12)) -> 0.00129261454 | L103: =IF(B103="","",1-(1-VLOOKUP(H103,Lapse!$B$3:$C$43,2))^(1/12)) -> 0.001682142553 | M103: 0.5657636355 | N103: 31.76438356 | O103: 352903.8056 | P103: 0 | Q103: 0 | R103: 19086784.52 | S103: 12573017.18
A104: 2031-05-31 | B104: 61.33995434 | C104: 61 | D104: 0 | E104: 6 | F104: 2032 | G104: 6 | H104: 9 | I104: 101 | J104: 0.8464771146 | K104: =IF(B104="","",1-(1-VLOOKUP(C104,Mortality!$F$4:$H$105,IF(Gender="M",2,3)))^(1/12)) -> 0.00129261454 | L104: =IF(B104="","",1-(1-VLOOKUP(H104,Lapse!$B$3:$C$43,2))^(1/12)) -> 0.001682142553 | M104: 0.5640818563 | N104: 31.84657534 | O104: 352903.8056 | P104: 0 | Q104: 0 | R104: 19118307.9 | S104: 12593782.54
A105: 2031-06-30 | B105: 61.42328767 | C105: 61 | D105: 0 | E105: 7 | F105: 2032 | G105: 7 | H105: 9 | I105: 102 | J105: 0.845081394 | K105: =IF(B105="","",1-(1-VLOOKUP(C105,Mortality!$F$4:$H$105,IF(Gender="M",2,3)))^(1/12)) -> 0.00129261454 | L105: =IF(B105="","",1-(1-VLOOKUP(H105,Lapse!$B$3:$C$43,2))^(1/12)) -> 0.001682142553 | M105: 0.5624050763 | N105: 31.93150685 | O105: 352903.8056 | P105: 0 | Q105: 0 | R105: 19149883.34 | S105: 12614582.19
A106: 2031-07-31 | B106: 61.506621 | C106: 61 | D106: 0 | E106: 8 | F106: 2032 | G106: 8 | H106: 9 | I106: 103 | J106: 0.8436879747 | K106: =IF(B106="","",1-(1-VLOOKUP(C106,Mortality!$F$4:$H$105,IF(Gender="M",2,3)))^(1/12)) -> 0.00129261454 | L106: =IF(B106="","",1-(1-VLOOKUP(H106,Lapse!$B$3:$C$43,2))^(1/12)) -> 0.001682142553 | M106: 0.5607332807 | N106: 32.01643836 | O106: 352903.8056 | P106: 0 | Q106: 0 | R106: 19181510.93 | S106: 12635416.2
A107: 2031-08-31 | B107: 61.58995434 | C107: 61 | D107: 0 | E107: 9 | F107: 2032 | G107: 9 | H107: 9 | I107: 104 | J107: 0.842296853 | K107: =IF(B107="","",1-(1-VLOOKUP(C107,Mortality!$F$4:$H$105,IF(Gender="M",2,3)))^(1/12)) -> 0.00129261454 | L107: =IF(B107="","",1-(1-VLOOKUP(H107,Lapse!$B$3:$C$43,2))^(1/12)) -> 0.001682142553 | M107: 0.5590664546 | N107: 32.09863014 | O107: 352903.8056 | P107: 0 | Q107: 0 | R107: 19213190.76 | S107: 12656284.62
A108: 2031-09-30 | B108: 61.67328767 | C108: 61 | D108: 0 | E108: 10 | F108: 2032 | G108: 10 | H108: 9 | I108: 105 | J108: 0.840908025 | K108: =IF(B108="","",1-(1-VLOOKUP(C108,Mortality!$F$4:$H$105,IF(Gender="M",2,3)))^(1/12)) -> 0.00129261454 | L108: =IF(B108="","",1-(1-VLOOKUP(H108,Lapse!$B$3:$C$43,2))^(1/12)) -> 0.001682142553 | M108: 0.5574045833 | N108: 32.18356164 | O108: 352903.8056 | P108: 0 | Q108: 0 | R108: 19244922.9 | S108: 12677187.5
A109: 2031-10-31 | B109: 61.756621 | C109: 61 | D109: 0 | E109: 11 | F109: 2032 | G109: 11 | H109: 9 | I109: 106 | J109: 0.839521487 | K109: =IF(B109="","",1-(1-VLOOKUP(C109,Mortality!$F$4:$H$105,IF(Gender="M",2,3)))^(1/12)) -> 0.00129261454 | L109: =IF(B109="","",1-(1-VLOOKUP(H109,Lapse!$B$3:$C$43,2))^(1/12)) -> 0.001682142553 | M109: 0.5557476521 | N109: 32.26575342 | O109: 352903.8056 | P109: 0 | Q109: 0 | R109: 19276707.46 | S109: 12698124.91
A110: 2031-11-30 | B110: 61.83995434 | C110: 61 | D110: 0 | E110: 12 | F110: 2032 | G110: 12 | H110: 9 | I110: 107 | J110: 0.8381372352 | K110: =IF(B110="","",1-(1-VLOOKUP(C110,Mortality!$F$4:$H$105,IF(Gender="M",2,3)))^(1/12)) -> 0.00129261454 | L110: =IF(B110="","",1-(1-VLOOKUP(H110,Lapse!$B$3:$C$43,2))^(1/12)) -> 0.001682142553 | M110: 0.5540956462 | N110: 32.35068493 | O110: 352903.8056 | P110: 0 | Q110: 0 | R110: 19308544.51 | S110: 12719096.89
A111: 2031-12-31 | B111: 61.92328767 | C111: 61 | D111: 0 | E111: 1 | F111: 2033 | G111: 1 | H111: 10 | I111: 108 | J111: 0.8367552659 | K111: =IF(B111="","",1-(1-VLOOKUP(C111,Mortality!$F$4:$H$105,IF(Gender="M",2,3)))^(1/12)) -> 0.00129261454 | L111: =IF(B111="","",1-(1-VLOOKUP(H111,Lapse!$B$3:$C$43,2))^(1/12)) -> 0.001682142553 | M111: 0.5524485511 | N111: 32.43561644 | O111: 359961.8817 | P111: 0 | Q111: 0 | R111: 19340434.14 | S111: 12740103.51
A112: 2032-01-31 | B112: 62.006621 | C112: 62 | D112: 0 | E112: 2 | F112: 2033 | G112: 2 | H112: 10 | I112: 109 | J112: 0.8353755752 | K112: =IF(B112="","",1-(1-VLOOKUP(C112,Mortality!$F$4:$H$105,IF(Gender="M",2,3)))^(1/12)) -> 0.001380167332 | L112: =IF(B112="","",1-(1-VLOOKUP(H112,Lapse!$B$3:$C$43,2))^(1/12)) -> 0.001682142553 | M112: 0.550758065 | N112: 32.51232877 | O112: 359961.8817 | P112: 0 | Q112: 0 | R112: 19372376.44 | S112: 12761144.83
A113: 2032-02-29 | B113: 62.08995434 | C113: 62 | D113: 0 | E113: 3 | F113: 2033 | G113: 3 | H113: 10 | I113: 110 | J113: 0.8339981594 | K113: =IF(B113="","",1-(1-VLOOKUP(C113,Mortality!$F$4:$H$105,IF(Gender="M",2,3)))^(1/12)) -> 0.001380167332 | L113: =IF(B113="","",1-(1-VLOOKUP(H113,Lapse!$B$3:$C$43,2))^(1/12)) -> 0.001682142553 | M113: 0.5490727518 | N113: 32.59726027 | O113: 359961.8817 | P113: 0 | Q113: 0 | R113: 19404371.49 | S113: 12782220.9
A114: 2032-03-31 | B114: 62.17328767 | C114: 62 | D114: 0 | E114: 4 | F114: 2033 | G114: 4 | H114: 10 | I114: 111 | J114: 0.8326230148 | K114: =IF(B114="","",1-(1-VLOOKUP(C114,Mortality!$F$4:$H$105,IF(Gender="M",2,3)))^(1/12)) -> 0.001380167332 | L114: =IF(B114="","",1-(1-VLOOKUP(H114,Lapse!$B$3:$C$43,2))^(1/12)) -> 0.001682142553 | M114: 0.5473925956 | N114: 32.67945205 | O114: 359961.8817 | P114: 0 | Q114: 0 | R114: 19436419.39 | S114: 12803331.78
A115: 2032-04-30 | B115: 62.256621 | C115: 62 | D115: 0 | E115: 5 | F115: 2033 | G115: 5 | H115: 10 | I115: 112 | J115: 0.8312501376 | K115: =IF(B115="","",1-(1-VLOOKUP(C115,Mortality!$F$4:$H$105,IF(Gender="M",2,3)))^(1/12)) -> 0.001380167332 | L115: =IF(B115="","",1-(1-VLOOKUP(H115,Lapse!$B$3:$C$43,2))^(1/12)) -> 0.001682142553 | M115: 0.5457175807 | N115: 32.76438356 | O115: 359961.8817 | P115: 0 | Q115: 0 | R115: 19468520.22 | S115: 12824477.52
A116: 2032-05-31 | B116: 62.33995434 | C116: 62 | D116: 0 | E116: 6 | F116: 2033 | G116: 6 | H116: 10 | I116: 113 | J116: 0.8298795241 | K116: =IF(B116="","",1-(1-VLOOKUP(C116,Mortality!$F$4:$H$105,IF(Gender="M",2,3)))^(1/12)) -> 0.001380167332 | L116: =IF(B116="","",1-(1-VLOOKUP(H116,Lapse!$B$3:$C$43,2))^(1/12)) -> 0.001682142553 | M116: 0.5440476914 | N116: 32.84657534 | O116: 359961.8817 | P116: 0 | Q116: 0 | R116: 19500674.06 | S116: 12845658.19
A117: 2032-06-30 | B117: 62.42328767 | C117: 62 | D117: 0 | E117: 7 | F117: 2033 | G117: 7 | H117: 10 | I117: 114 | J117: 0.8285111706 | K117: =IF(B117="","",1-(1-VLOOKUP(C117,Mortality!$F$4:$H$105,IF(Gender="M",2,3)))^(1/12)) -> 0.001380167332 | L117: =IF(B117="","",1-(1-VLOOKUP(H117,Lapse!$B$3:$C$43,2))^(1/12)) -> 0.001682142553 | M117: 0.5423829118 | N117: 32.93150685 | O117: 359961.8817 | P117: 0 | Q117: 0 | R117: 19532881.01 | S117: 12866873.84
A118: 2032-07-31 | B118: 62.506621 | C118: 62 | D118: 0 | E118: 8 | F118: 2033 | G118: 8 | H118: 10 | I118: 115 | J118: 0.8271450732 | K118: =IF(B118="","",1-(1-VLOOKUP(C118,Mortality!$F$4:$H$105,IF(Gender="M",2,3)))^(1/12)) -> 0.001380167332 | L118: =IF(B118="","",1-(1-VLOOKUP(H118,Lapse!$B$3:$C$43,2))^(1/12)) -> 0.001682142553 | M118: 0.5407232265 | N118: 33.01643836 | O118: 359961.8817 | P118: 0 | Q118: 0 | R118: 19565141.15 | S118: 12888124.52
A119: 2032-08-31 | B119: 62.58995434 | C119: 62 | D119: 0 | E119: 9 | F119: 2033 | G119: 9 | H119: 10 | I119: 116 | J119: 0.8257812284 | K119: =IF(B119="","",1-(1-VLOOKUP(C119,Mortality!$F$4:$H$105,IF(Gender="M",2,3)))^(1/12)) -> 0.001380167332 | L119: =IF(B119="","",1-(1-VLOOKUP(H119,Lapse!$B$3:$C$43,2))^(1/12)) -> 0.001682142553 | M119: 0.5390686198 | N119: 33.09863014 | O119: 359961.8817 | P119: 0 | Q119: 0 | R119: 19597454.57 | S119: 12909410.31
A120: 2032-09-30 | B120: 62.67328767 | C120: 62 | D120: 0 | E120: 10 | F120: 2033 | G120: 10 | H120: 10 | I120: 117 | J120: 0.8244196324 | K120: =IF(B120="","",1-(1-VLOOKUP(C120,Mortality!$F$4:$H$105,IF(Gender="M",2,3)))^(1/12)) -> 0.001380167332 | L120: =IF(B120="","",1-(1-VLOOKUP(H120,Lapse!$B$3:$C$43,2))^(1/12)) -> 0.001682142553 | M120: 0.5374190761 | N120: 33.18356164 | O120: 359961.8817 | P120: 0 | Q120: 0 | R120: 19629821.36 | S120: 12930731.25
A121: 2032-10-31 | B121: 62.756621 | C121: 62 | D121: 0 | E121: 11 | F121: 2033 | G121: 11 | H121: 10 | I121: 118 | J121: 0.8230602814 | K121: =IF(B121="","",1-(1-VLOOKUP(C121,Mortality!$F$4:$H$105,IF(Gender="M",2,3)))^(1/12)) -> 0.001380167332 | L121: =IF(B121="","",1-(1-VLOOKUP(H121,Lapse!$B$3:$C$43,2))^(1/12)) -> 0.001682142553 | M121: 0.5357745801 | N121: 33.26575342 | O121: 359961.8817 | P121: 0 | Q121: 0 | R121: 19662241.61 | S121: 12952087.4
A122: 2032-11-30 | B122: 62.83995434 | C122: 62 | D122: 0 | E122: 12 | F122: 2033 | G122: 12 | H122: 10 | I122: 119 | J122: 0.8217031718 | K122: =IF(B122="","",1-(1-VLOOKUP(C122,Mortality!$F$4:$H$105,IF(Gender="M",2,3)))^(1/12)) -> 0.001380167332 | L122: =IF(B122="","",1-(1-VLOOKUP(H122,Lapse!$B$3:$C$43,2))^(1/12)) -> 0.001682142553 | M122: 0.5341351161 | N122: 33.35068493 | O122: 359961.8817 | P122: 0 | Q122: 0 | R122: 19694715.4 | S122: 12973478.83
A123: 2032-12-31 | B123: 62.92328767 | C123: 62 | D123: 0 | E123: 1 | F123: 2034 | G123: 1 | H123: 11 | I123: 120 | J123: 0.8203482999 | K123: =IF(B123="","",1-(1-VLOOKUP(C123,Mortality!$F$4:$H$105,IF(Gender="M",2,3)))^(1/12)) -> 0.001380167332 | L123: =IF(B123="","",1-(1-VLOOKUP(H123,Lapse!$B$3:$C$43,2))^(1/12)) -> 0.001682142553 | M123: 0.532500669 | N123: 33.43561644 | O123: 367161.1193 | P123: 0 | Q123: 0 | R123: 19727242.82 | S123: 12994905.58
A124: 2033-01-31 | B124: 63.006621 | C124: 63 | D124: 0 | E124: 2 | F124: 2034 | G124: 2 | H124: 11 | I124: 121 | J124: 0.818995662 | K124: =IF(B124="","",1-(1-VLOOKUP(C124,Mortality!$F$4:$H$105,IF(Gender="M",2,3)))^(1/12)) -> 0.001465541606 | L124: =IF(B124="","",1-(1-VLOOKUP(H124,Lapse!$B$3:$C$43,2))^(1/12)) -> 0.001682142553 | M124: 0.5308258378 | N124: 33.51232877 | O124: 367161.1193 | P124: 0 | Q124: 0 | R124: 19759823.97 | S124: 13016367.73
A125: 2033-02-28 | B125: 63.08995434 | C125: 63 | D125: 0 | E125: 3 | F125: 2034 | G125: 3 | H125: 11 | I125: 122 | J125: 0.8176452543 | K125: =IF(B125="","",1-(1-VLOOKUP(C125,Mortality!$F$4:$H$105,IF(Gender="M",2,3)))^(1/12)) -> 0.001465541606 | L125: =IF(B125="","",1-(1-VLOOKUP(H125,Lapse!$B$3:$C$43,2))^(1/12)) -> 0.001682142553 | M125: 0.5291562743 | N125: 33.59726027 | O125: 367161.1193 | P125: 0 | Q125: 0 | R125: 19792458.92 | S125: 13037865.32
A126: 2033-03-31 | B126: 63.17328767 | C126: 63 | D126: 0 | E126: 4 | F126: 2034 | G126: 4 | H126: 11 | I126: 123 | J126: 0.8162970734 | K126: =IF(B126="","",1-(1-VLOOKUP(C126,Mortality!$F$4:$H$105,IF(Gender="M",2,3)))^(1/12)) -> 0.001465541606 | L126: =IF(B126="","",1-(1-VLOOKUP(H126,Lapse!$B$3:$C$43,2))^(1/12)) -> 0.001682142553 | M126: 0.527491962 | N126: 33.67945205 | O126: 367161.1193 | P126: 0 | Q126: 0 | R126: 19825147.78 | S126: 13059398.41
A127: 2033-04-30 | B127: 63.256621 | C127: 63 | D127: 0 | E127: 5 | F127: 2034 | G127: 5 | H127: 11 | I127: 124 | J127: 0.8149511153 | K127: =IF(B127="","",1-(1-VLOOKUP(C127,Mortality!$F$4:$H$105,IF(Gender="M",2,3)))^(1/12)) -> 0.001465541606 | L127: =IF(B127="","",1-(1-VLOOKUP(H127,Lapse!$B$3:$C$43,2))^(1/12)) -> 0.001682142553 | M127: 0.5258328843 | N127: 33.76438356 | O127: 367161.1193 | P127: 0 | Q127: 0 | R127: 19857890.62 | S127: 13080967.07
A128: 2033-05-31 | B128: 63.33995434 | C128: 63 | D128: 0 | E128: 6 | F128: 2034 | G128: 6 | H128: 11 | I128: 125 | J128: 0.8136073766 | K128: =IF(B128="","",1-(1-VLOOKUP(C128,Mortality!$F$4:$H$105,IF(Gender="M",2,3)))^(1/12)) -> 0.001465541606 | L128: =IF(B128="","",1-(1-VLOOKUP(H128,Lapse!$B$3:$C$43,2))^(1/12)) -> 0.001682142553 | M128: 0.5241790248 | N128: 33.84657534 | O128: 367161.1193 | P128: 0 | Q128: 0 | R128: 19890687.54 | S128: 13102571.35
A129: 2033-06-30 | B129: 63.42328767 | C129: 63 | D129: 0 | E129: 7 | F129: 2034 | G129: 7 | H129: 11 | I129: 126 | J129: 0.8122658535 | K129: =IF(B129="","",1-(1-VLOOKUP(C129,Mortality!$F$4:$H$105,IF(Gender="M",2,3)))^(1/12)) -> 0.001465541606 | L129: =IF(B129="","",1-(1-VLOOKUP(H129,Lapse!$B$3:$C$43,2))^(1/12)) -> 0.001682142553 | M129: 0.522530367 | N129: 33.93150685 | O129: 367161.1193 | P129: 0 | Q129: 0 | R129: 19923538.63 | S129: 13124211.31
A130: 2033-07-31 | B130: 63.506621 | C130: 63 | D130: 0 | E130: 8 | F130: 2034 | G130: 8 | H130: 11 | I130: 127 | J130: 0.8109265424 | K130: =IF(B130="","",1-(1-VLOOKUP(C130,Mortality!$F$4:$H$105,IF(Gender="M",2,3)))^(1/12)) -> 0.001465541606 | L130: =IF(B130="","",1-(1-VLOOKUP(H130,Lapse!$B$3:$C$43,2))^(1/12)) -> 0.001682142553 | M130: 0.5208868946 | N130: 34.01643836 | O130: 367161.1193 | P130: 0 | Q130: 0 | R130: 19956443.97 | S130: 13145887.01
A131: 2033-08-31 | B131: 63.58995434 | C131: 63 | D131: =IF(C131="","",IF(C131>=Retire_age,1,0)) -> 0 | E131: 9 | F131: 2034 | G131: 9 | H131: 11 | I131: 128 | J131: 0.8095894396 | K131: =IF(B131="","",1-(1-VLOOKUP(C131,Mortality!$F$4:$H$105,IF(Gender="M",2,3)))^(1/12)) -> 0.001465541606 | L131: =IF(B131="","",1-(1-VLOOKUP(H131,Lapse!$B$3:$C$43,2))^(1/12)) -> 0.001682142553 | M131: 0.5192485913 | N131: =IF(B131="","",IF(retire_indicator=1,N130,MIN(YEARFRAC(DATE(Calender_year,Calender_month+1,0),Joined_date,3),Max_Schem_Service))) -> 34.09863014 | O131: =IF(B131="","",IF(retire_indicator=1,O130,Monthly_Salary*(1+Sal_increase_rate_pa)^(Calender_year-YEAR(Val_Date)-1))) -> 367161.1193 | P131: =IF(B131="","",IF(retire_indicator=1, Pension_factor*Scheme_service*Salary_PP*(1+Pension_increase_rate_pa)^(Calender_year-YEAR(Val_Date)-1),0)) -> 0 | Q131: =IF(B131="","",M130*Pension_PP) -> 0 | R131: =IF(B131="",0,Pension_CF+R132/(1+Disc_Rate_Month)) -> 19989403.66 | S131: =PVCF*current_service/except_service -> 13167598.52
A132: =IF(B132="","",EOMONTH(A131,1)) -> 2033-09-30 | B132: =IF(B131="","", IF(B131+1/12>Max_age,"",B131+1/12)) -> 63.67328767 | C132: =IF(B132="","",INT(B132)) -> 63 | D132: 0 | E132: 10 | F132: 2034 | G132: 10 | H132: 11 | I132: =IF(B132="","",I131+1) -> 129 | J132: =IF(B132="","",(1+Disc_Rate_Month)^(-I132)) -> 0.8082545415 | K132: =IF(B132="","",1-(1-VLOOKUP(C132,Mortality!$F$4:$H$105,IF(Gender="M",2,3)))^(1/12)) -> 0.001465541606 | L132: =IF(B132="","",1-(1-VLOOKUP(H132,Lapse!$B$3:$C$43,2))^(1/12)) -> 0.001682142553 | M132: =IF(B132="","",M131*(1-K132)*(1-L132)) -> 0.5176154408 | N132: 34.18356164 | O132: 367161.1193 | P132: 0 | Q132: 0 | R132: 20022417.79 | S132: 13189345.87
A133: 2033-10-31 | B133: 63.756621 | C133: 63 | D133: 0 | E133: =IF(B133="","",IF(E132=12,1,E132+1)) -> 11 | F133: =IF(B133="","",IF(E132=12,F132+1,F132)) -> 2034 | G133: =IF(B133="","",IF(G132=12,1,G132+1)) -> 11 | H133: =IF(B133="","",IF(G132=12,H132+1,H132)) -> 11 | I133: 130 | J133: 0.8069218445 | K133: =IF(B133="","",1-(1-VLOOKUP(C133,Mortality!$F$4:$H$105,IF(Gender="M",2,3)))^(1/12)) -> 0.001465541606 | L133: =IF(B133="","",1-(1-VLOOKUP(H133,Lapse!$B$3:$C$43,2))^(1/12)) -> 0.001682142553 | M133: 0.5159874269 | N133: 34.26575342 | O133: 367161.1193 | P133: 0 | Q133: 0 | R133: 20055486.44 | S133: 13211129.15
A134: 2033-11-30 | B134: 63.83995434 | C134: 63 | D134: 0 | E134: 12 | F134: 2034 | G134: 12 | H134: 11 | I134: 131 | J134: 0.8055913449 | K134: =IF(B134="","",1-(1-VLOOKUP(C134,Mortality!$F$4:$H$105,IF(Gender="M",2,3)))^(1/12)) -> 0.001465541606 | L134: =IF(B134="","",1-(1-VLOOKUP(H134,Lapse!$B$3:$C$43,2))^(1/12)) -> 0.001682142553 | M134: 0.5143645335 | N134: 34.35068493 | O134: 367161.1193 | P134: 0 | Q134: 0 | R134: 20088609.7 | S134: 13232948.41
A135: 2033-12-31 | B135: 63.92328767 | C135: 63 | D135: 0 | E135: 1 | F135: 2035 | G135: 1 | H135: 12 | I135: 132 | J135: 0.8042630391 | K135: =IF(B135="","",1-(1-VLOOKUP(C135,Mortality!$F$4:$H$105,IF(Gender="M",2,3)))^(1/12)) -> 0.001465541606 | L135: =IF(B135="","",1-(1-VLOOKUP(H135,Lapse!$B$3:$C$43,2))^(1/12)) -> 0.001682142553 | M135: 0.5127467445 | N135: 34.43561644 | O135: 374504.3417 | P135: 0 | Q135: 0 | R135: 20121787.68 | S135: 13254803.7
A136: 2034-01-31 | B136: 64.006621 | C136: 64 | D136: 0 | E136: 2 | F136: 2035 | G136: 2 | H136: 12 | I136: 133 | J136: 0.8029369235 | K136: =IF(B136="","",1-(1-VLOOKUP(C136,Mortality!$F$4:$H$105,IF(Gender="M",2,3)))^(1/12)) -> 0.0015527462 | L136: =IF(B136="","",1-(1-VLOOKUP(H136,Lapse!$B$3:$C$43,2))^(1/12)) -> 0.001682142553 | M136: 0.5110894051 | N136: 34.51232877 | O136: 374504.3417 | P136: 0 | Q136: 0 | R136: 20155020.44 | S136: 13276695.08
A137: 2034-02-28 | B137: 64.08995434 | C137: 64 | D137: 0 | E137: 3 | F137: 2035 | G137: 3 | H137: 12 | I137: 134 | J137: 0.8016129945 | K137: =IF(B137="","",1-(1-VLOOKUP(C137,Mortality!$F$4:$H$105,IF(Gender="M",2,3)))^(1/12)) -> 0.0015527462 | L137: =IF(B137="","",1-(1-VLOOKUP(H137,Lapse!$B$3:$C$43,2))^(1/12)) -> 0.001682142553 | M137: 0.5094374226 | N137: 34.59726027 | O137: 374504.3417 | P137: 0 | Q137: 0 | R137: 20188308.1 | S137: 13298622.62
A138: 2034-03-31 | B138: 64.17328767 | C138: 64 | D138: 0 | E138: 4 | F138: 2035 | G138: 4 | H138: 12 | I138: 135 | J138: 0.8002912484 | K138: =IF(B138="","",1-(1-VLOOKUP(C138,Mortality!$F$4:$H$105,IF(Gender="M",2,3)))^(1/12)) -> 0.0015527462 | L138: =IF(B138="","",1-(1-VLOOKUP(H138,Lapse!$B$3:$C$43,2))^(1/12)) -> 0.001682142553 | M138: 0.5077907799 | N138: 34.67945205 | O138: 374504.3417 | P138: 0 | Q138: 0 | R138: 20221650.73 | S138: 13320586.38
A139: 2034-04-30 | B139: 64.256621 | C139: 64 | D139: 0 | E139: 5 | F139: 2035 | G139: 5 | H139: 12 | I139: 136 | J139: 0.7989716817 | K139: =IF(B139="","",1-(1-VLOOKUP(C139,Mortality!$F$4:$H$105,IF(Gender="M",2,3)))^(1/12)) -> 0.0015527462 | L139: =IF(B139="","",1-(1-VLOOKUP(H139,Lapse!$B$3:$C$43,2))^(1/12)) -> 0.001682142553 | M139: 0.5061494595 | N139: 34.76438356 | O139: 374504.3417 | P139: 0 | Q139: 0 | R139: 20255048.43 | S139: 13342586.41
A140: 2034-05-31 | B140: 64.33995434 | C140: 64 | D140: 0 | E140: 6 | F140: 2035 | G140: 6 | H140: 12 | I140: 137 | J140: 0.7976542908 | K140: =IF(B140="","",1-(1-VLOOKUP(C140,Mortality!$F$4:$H$105,IF(Gender="M",2,3)))^(1/12)) -> 0.0015527462 | L140: =IF(B140="","",1-(1-VLOOKUP(H140,Lapse!$B$3:$C$43,2))^(1/12)) -> 0.001682142553 | M140: 0.5045134443 | N140: 34.84657534 | O140: 374504.3417 | P140: 0 | Q140: 0 | R140: 20288501.29 | S140: 13364622.78
A141: 2034-06-30 | B141: 64.42328767 | C141: 64 | D141: 0 | E141: 7 | F141: 2035 | G141: 7 | H141: 12 | I141: 138 | J141: 0.7963390721 | K141: =IF(B141="","",1-(1-VLOOKUP(C141,Mortality!$F$4:$H$105,IF(Gender="M",2,3)))^(1/12)) -> 0.0015527462 | L141: =IF(B141="","",1-(1-VLOOKUP(H141,Lapse!$B$3:$C$43,2))^(1/12)) -> 0.001682142553 | M141: 0.5028827172 | N141: 34.93150685 | O141: 374504.3417 | P141: 0 | Q141: 0 | R141: 20322009.4 | S141: 13386695.54
A142: 2034-07-31 | B142: 64.506621 | C142: 64 | D142: 0 | E142: 8 | F142: 2035 | G142: 8 | H142: 12 | I142: 139 | J142: 0.795026022 | K142: =IF(B142="","",1-(1-VLOOKUP(C142,Mortality!$F$4:$H$105,IF(Gender="M",2,3)))^(1/12)) -> 0.0015527462 | L142: =IF(B142="","",1-(1-VLOOKUP(H142,Lapse!$B$3:$C$43,2))^(1/12)) -> 0.001682142553 | M142: 0.5012572611 | N142: 35.01643836 | O142: 374504.3417 | P142: 0 | Q142: 0 | R142: 20355572.85 | S142: 13408804.75
A143: 2034-08-31 | B143: 64.58995434 | C143: 64 | D143: 0 | E143: 9 | F143: 2035 | G143: 9 | H143: 12 | I143: 140 | J143: 0.7937151369 | K143: =IF(B143="","",1-(1-VLOOKUP(C143,Mortality!$F$4:$H$105,IF(Gender="M",2,3)))^(1/12)) -> 0.0015527462 | L143: =IF(B143="","",1-(1-VLOOKUP(H143,Lapse!$B$3:$C$43,2))^(1/12)) -> 0.001682142553 | M143: 0.4996370589 | N143: 35.09863014 | O143: 374504.3417 | P143: 0 | Q143: 0 | R143: 20389191.73 | S143: 13430950.49
A144: 2034-09-30 | B144: 64.67328767 | C144: 64 | D144: 0 | E144: 10 | F144: 2035 | G144: 10 | H144: 12 | I144: 141 | J144: 0.7924064133 | K144: =IF(B144="","",1-(1-VLOOKUP(C144,Mortality!$F$4:$H$105,IF(Gender="M",2,3)))^(1/12)) -> 0.0015527462 | L144: =IF(B144="","",1-(1-VLOOKUP(H144,Lapse!$B$3:$C$43,2))^(1/12)) -> 0.001682142553 | M144: 0.4980220936 | N144: 35.18356164 | O144: 374504.3417 | P144: 0 | Q144: 0 | R144: 20422866.14 | S144: 13453132.79
A145: 2034-10-31 | B145: 64.756621 | C145: 64 | D145: 0 | E145: 11 | F145: 2035 | G145: 11 | H145: 12 | I145: 142 | J145: 0.7910998475 | K145: =IF(B145="","",1-(1-VLOOKUP(C145,Mortality!$F$4:$H$105,IF(Gender="M",2,3)))^(1/12)) -> 0.0015527462 | L145: =IF(B145="","",1-(1-VLOOKUP(H145,Lapse!$B$3:$C$43,2))^(1/12)) -> 0.001682142553 | M145: 0.4964123483 | N145: 35.26575342 | O145: 374504.3417 | P145: 0 | Q145: 0 | R145: 20456596.17 | S145: 13475351.73
A146: 2034-11-30 | B146: 64.83995434 | C146: 64 | D146: 0 | E146: 12 | F146: 2035 | G146: 12 | H146: 12 | I146: 143 | J146: 0.7897954362 | K146: =IF(B146="","",1-(1-VLOOKUP(C146,Mortality!$F$4:$H$105,IF(Gender="M",2,3)))^(1/12)) -> 0.0015527462 | L146: =IF(B146="","",1-(1-VLOOKUP(H146,Lapse!$B$3:$C$43,2))^(1/12)) -> 0.001682142553 | M146: 0.4948078062 | N146: 35.35068493 | O146: 374504.3417 | P146: 0 | Q146: 0 | R146: 20490381.9 | S146: 13497607.37
A147: 2034-12-31 | B147: 64.92328767 | C147: 64 | D147: 0 | E147: 1 | F147: 2036 | G147: 1 | H147: 13 | I147: 144 | J147: 0.7884931756 | K147: =IF(B147="","",1-(1-VLOOKUP(C147,Mortality!$F$4:$H$105,IF(Gender="M",2,3)))^(1/12)) -> 0.0015527462 | L147: =IF(B147="","",1-(1-VLOOKUP(H147,Lapse!$B$3:$C$43,2))^(1/12)) -> 0.001682142553 | M147: 0.4932084504 | N147: 35.43561644 | O147: 381994.4285 | P147: 0 | Q147: 0 | R147: 20524223.43 | S147: 13519899.77
A148: 2035-01-31 | B148: 65.006621 | C148: 65 | D148: 1 | E148: 2 | F148: 2036 | G148: 2 | H148: 13 | I148: 145 | J148: 0.7871930622 | K148: =IF(B148="","",1-(1-VLOOKUP(C148,Mortality!$F$4:$H$105,IF(Gender="M",2,3)))^(1/12)) -> 0.001646140588 | L148: =IF(B148="","",1-(1-VLOOKUP(H148,Lapse!$B$3:$C$43,2))^(1/12)) -> 0.001682142553 | M148: 0.4915682787 | N148: 35.43561644 | O148: 381994.4285 | P148: 287421.8349 | Q148: 141758.8778 | R148: 20558120.85 | S148: 13542228.98
A149: 2035-02-28 | B149: 65.08995434 | C149: 65 | D149: 1 | E149: 3 | F149: 2036 | G149: 3 | H149: 13 | I149: 146 | J149: 0.7858950926 | K149: =IF(B149="","",1-(1-VLOOKUP(C149,Mortality!$F$4:$H$105,IF(Gender="M",2,3)))^(1/12)) -> 0.001646140588 | L149: =IF(B149="","",1-(1-VLOOKUP(H149,Lapse!$B$3:$C$43,2))^(1/12)) -> 0.001682142553 | M149: 0.4899335615 | N149: 35.43561644 | O149: 381994.4285 | P149: 287421.8349 | Q149: 141287.4566 | R149: 20450081.26 | S149: 13471060.18
A150: 2035-03-31 | B150: 65.17328767 | C150: 65 | D150: 1 | E150: 4 | F150: 2036 | G150: 4 | H150: 13 | I150: 147 | J150: 0.7845992631 | K150: =IF(B150="","",1-(1-VLOOKUP(C150,Mortality!$F$4:$H$105,IF(Gender="M",2,3)))^(1/12)) -> 0.001646140588 | L150: =IF(B150="","",1-(1-VLOOKUP(H150,Lapse!$B$3:$C$43,2))^(1/12)) -> 0.001682142553 | M150: 0.4883042805 | N150: 35.43561644 | O150: 381994.4285 | P150: 287421.8349 | Q150: 140817.6032 | R150: 20342335.42 | S150: 13400084.88
A151: 2035-04-30 | B151: 65.256621 | C151: 65 | D151: 1 | E151: 5 | F151: 2036 | G151: 5 | H151: 13 | I151: 148 | J151: 0.7833055703 | K151: =IF(B151="","",1-(1-VLOOKUP(C151,Mortality!$F$4:$H$105,IF(Gender="M",2,3)))^(1/12)) -> 0.001646140588 | L151: =IF(B151="","",1-(1-VLOOKUP(H151,Lapse!$B$3:$C$43,2))^(1/12)) -> 0.001682142553 | M151: 0.4866804178 | N151: 35.43561644 | O151: 381994.4285 | P151: 287421.8349 | Q151: 140349.3123 | R151: 20234882.27 | S151: 13329302.38
A152: 2035-05-31 | B152: 65.33995434 | C152: 65 | D152: 1 | E152: 6 | F152: 2036 | G152: 6 | H152: 13 | I152: 149 | J152: 0.7820140106 | K152: =IF(B152="","",1-(1-VLOOKUP(C152,Mortality!$F$4:$H$105,IF(Gender="M",2,3)))^(1/12)) -> 0.001646140588 | L152: =IF(B152="","",1-(1-VLOOKUP(H152,Lapse!$B$3:$C$43,2))^(1/12)) -> 0.001682142553 | M152: 0.4850619552 | N152: 35.43561644 | O152: 381994.4285 | P152: 287421.8349 | Q152: 139882.5787 | R152: 20127720.71 | S152: 13258711.96
A153: 2035-06-30 | B153: 65.42328767 | C153: 65 | D153: 1 | E153: 7 | F153: 2036 | G153: 7 | H153: 13 | I153: 150 | J153: 0.7807245805 | K153: =IF(B153="","",1-(1-VLOOKUP(C153,Mortality!$F$4:$H$105,IF(Gender="M",2,3)))^(1/12)) -> 0.001646140588 | L153: =IF(B153="","",1-(1-VLOOKUP(H153,Lapse!$B$3:$C$43,2))^(1/12)) -> 0.001682142553 | M153: 0.4834488748 | N153: 35.43561644 | O153: 381994.4285 | P153: 287421.8349 | Q153: 139417.3972 | R153: 20020849.67 | S153: 13188312.91
A154: 2035-07-31 | B154: 65.506621 | C154: 65 | D154: 1 | E154: 8 | F154: 2036 | G154: 8 | H154: 13 | I154: 151 | J154: 0.7794372764 | K154: =IF(B154="","",1-(1-VLOOKUP(C154,Mortality!$F$4:$H$105,IF(Gender="M",2,3)))^(1/12)) -> 0.001646140588 | L154: =IF(B154="","",1-(1-VLOOKUP(H154,Lapse!$B$3:$C$43,2))^(1/12)) -> 0.001682142553 | M154: 0.4818411588 | N154: 35.43561644 | O154: 381994.4285 | P154: 287421.8349 | Q154: 138953.7627 | R154: 19914268.08 | S154: 13118104.53
A155: 2035-08-31 | B155: 65.58995434 | C155: 65 | D155: 1 | E155: 9 | F155: 2036 | G155: 9 | H155: 13 | I155: 152 | J155: 0.778152095 | K155: =IF(B155="","",1-(1-VLOOKUP(C155,Mortality!$F$4:$H$105,IF(Gender="M",2,3)))^(1/12)) -> 0.001646140588 | L155: =IF(B155="","",1-(1-VLOOKUP(H155,Lapse!$B$3:$C$43,2))^(1/12)) -> 0.001682142553 | M155: 0.4802387892 | N155: 35.43561644 | O155: 381994.4285 | P155: 287421.8349 | Q155: 138491.67 | R155: 19807974.86 | S155: 13048086.11
A156: 2035-09-30 | B156: 65.67328767 | C156: 65 | D156: 1 | E156: 10 | F156: 2036 | G156: 10 | H156: 13 | I156: 153 | J156: 0.7768690326 | K156: =IF(B156="","",1-(1-VLOOKUP(C156,Mortality!$F$4:$H$105,IF(Gender="M",2,3)))^(1/12)) -> 0.001646140588 | L156: =IF(B156="","",1-(1-VLOOKUP(H156,Lapse!$B$3:$C$43,2))^(1/12)) -> 0.001682142553 | M156: 0.4786417483 | N156: 35.43561644 | O156: 381994.4285 | P156: 287421.8349 | Q156: 138031.114 | R156: 19701968.94 | S156: 12978256.95
A157: 2035-10-31 | B157: 65.756621 | C157: 65 | D157: 1 | E157: 11 | F157: 2036 | G157: 11 | H157: 13 | I157: 154 | J157: 0.7755880858 | K157: =IF(B157="","",1-(1-VLOOKUP(C157,Mortality!$F$4:$H$105,IF(Gender="M",2,3)))^(1/12)) -> 0.001646140588 | L157: =IF(B157="","",1-(1-VLOOKUP(H157,Lapse!$B$3:$C$43,2))^(1/12)) -> 0.001682142553 | M157: 0.4770500184 | N157: 35.43561644 | O157: 381994.4285 | P157: 287421.8349 | Q157: 137572.0896 | R157: 19596249.26 | S157: 12908616.33
A158: 2035-11-30 | B158: 65.83995434 | C158: 65 | D158: 1 | E158: 12 | F158: 2036 | G158: 12 | H158: 13 | I158: 155 | J158: 0.7743092511 | K158: =IF(B158="","",1-(1-VLOOKUP(C158,Mortality!$F$4:$H$105,IF(Gender="M",2,3)))^(1/12)) -> 0.001646140588 | L158: =IF(B158="","",1-(1-VLOOKUP(H158,Lapse!$B$3:$C$43,2))^(1/12)) -> 0.001682142553 | M158: 0.4754635819 | N158: 35.43561644 | O158: 381994.4285 | P158: 287421.8349 | Q158: 137114.5916 | R158: 19490814.75 | S158: 12839163.58
A159: 2035-12-31 | B159: 65.92328767 | C159: 65 | D159: 1 | E159: 1 | F159: 2037 | G159: 1 | H159: 14 | I159: 156 | J159: 0.7730325251 | K159: =IF(B159="","",1-(1-VLOOKUP(C159,Mortality!$F$4:$H$105,IF(Gender="M",2,3)))^(1/12)) -> 0.001646140588 | L159: =IF(B159="","",1-(1-VLOOKUP(H159,Lapse!$B$3:$C$43,2))^(1/12)) -> 0.001682142553 | M159: 0.473882421 | N159: 35.43561644 | O159: 381994.4285 | P159: 288858.9441 | Q159: 137341.9082 | R159: 19385664.37 | S159: 12769897.98
A160: 2036-01-31 | B160: 66.006621 | C160: 66 | D160: 1 | E160: 2 | F160: 2037 | G160: 2 | H160: 14 | I160: 157 | J160: 0.7717579042 | K160: =IF(B160="","",1-(1-VLOOKUP(C160,Mortality!$F$4:$H$105,IF(Gender="M",2,3)))^(1/12)) -> 0.001760893955 | L160: =IF(B160="","",1-(1-VLOOKUP(H160,Lapse!$B$3:$C$43,2))^(1/12)) -> 0.001682142553 | M160: 0.4722522302 | N160: 35.43561644 | O160: 381994.4285 | P160: 288858.9441 | Q160: 136885.1757 | R160: 19280112.63 | S160: 12700367.99
A161: 2036-02-29 | B161: 66.08995434 | C161: 66 | D161: 1 | E161: 3 | F161: 2037 | G161: 3 | H161: 14 | I161: 158 | J161: 0.7704853849 | K161: =IF(B161="","",1-(1-VLOOKUP(C161,Mortality!$F$4:$H$105,IF(Gender="M",2,3)))^(1/12)) -> 0.001760893955 | L161: =IF(B161="","",1-(1-VLOOKUP(H161,Lapse!$B$3:$C$43,2))^(1/12)) -> 0.001682142553 | M161: 0.4706276474 | N161: 35.43561644 | O161: 381994.4285 | P161: 288858.9441 | Q161: 136414.2806 | R161: 19174844.05 | S161: 12631024.54
A162: 2036-03-31 | B162: 66.17328767 | C162: 66 | D162: 1 | E162: 4 | F162: 2037 | G162: 4 | H162: 14 | I162: 159 | J162: 0.7692149638 | K162: =IF(B162="","",1-(1-VLOOKUP(C162,Mortality!$F$4:$H$105,IF(Gender="M",2,3)))^(1/12)) -> 0.001760893955 | L162: =IF(B162="","",1-(1-VLOOKUP(H162,Lapse!$B$3:$C$43,2))^(1/12)) -> 0.001682142553 | M162: 0.4690086533 | N162: 35.43561644 | O162: 381994.4285 | P162: 288858.9441 | Q162: 135945.0053 | R162: 19069873.29 | S162: 12561877.25
A163: 2036-04-30 | B163: 66.256621 | C163: 66 | D163: 1 | E163: 5 | F163: 2037 | G163: 5 | H163: 14 | I163: 160 | J163: 0.7679466375 | K163: =IF(B163="","",1-(1-VLOOKUP(C163,Mortality!$F$4:$H$105,IF(Gender="M",2,3)))^(1/12)) -> 0.001760893955 | L163: =IF(B163="","",1-(1-VLOOKUP(H163,Lapse!$B$3:$C$43,2))^(1/12)) -> 0.001682142553 | M163: 0.4673952286 | N163: 35.43561644 | O163: 381994.4285 | P163: 288858.9441 | Q163: 135477.3443 | R163: 18965199.2 | S163: 12492925.41
A164: 2036-05-31 | B164: 66.33995434 | C164: 66 | D164: 1 | E164: 6 | F164: 2037 | G164: 6 | H164: 14 | I164: 161 | J164: 0.7666804025 | K164: =IF(B164="","",1-(1-VLOOKUP(C164,Mortality!$F$4:$H$105,IF(Gender="M",2,3)))^(1/12)) -> 0.001760893955 | L164: =IF(B164="","",1-(1-VLOOKUP(H164,Lapse!$B$3:$C$43,2))^(1/12)) -> 0.001682142553 | M164: 0.4657873542 | N164: 35.43561644 | O164: 381994.4285 | P164: 288858.9441 | Q164: 135011.2922 | R164: 18860820.68 | S164: 12424168.25
A165: 2036-06-30 | B165: 66.42328767 | C165: 66 | D165: 1 | E165: 7 | F165: 2037 | G165: 7 | H165: 14 | I165: 162 | J165: 0.7654162553 | K165: =IF(B165="","",1-(1-VLOOKUP(C165,Mortality!$F$4:$H$105,IF(Gender="M",2,3)))^(1/12)) -> 0.001760893955 | L165: =IF(B165="","",1-(1-VLOOKUP(H165,Lapse!$B$3:$C$43,2))^(1/12)) -> 0.001682142553 | M165: 0.4641850111 | N165: 35.43561644 | O165: 381994.4285 | P165: 288858.9441 | Q165: 134546.8433 | R165: 18756736.58 | S165: 12355605.05
A166: 2036-07-31 | B166: 66.506621 | C166: 66 | D166: 1 | E166: 8 | F166: 2037 | G166: 8 | H166: 14 | I166: 163 | J166: 0.7641541926 | K166: =IF(B166="","",1-(1-VLOOKUP(C166,Mortality!$F$4:$H$105,IF(Gender="M",2,3)))^(1/12)) -> 0.001760893955 | L166: =IF(B166="","",1-(1-VLOOKUP(H166,Lapse!$B$3:$C$43,2))^(1/12)) -> 0.001682142553 | M166: 0.4625881801 | N166: 35.43561644 | O166: 381994.4285 | P166: 288858.9441 | Q166: 134083.9921 | R166: 18652945.8 | S166: 12287235.06
A167: 2036-08-31 | B167: 66.58995434 | C167: 66 | D167: 1 | E167: 9 | F167: 2037 | G167: 9 | H167: 14 | I167: 164 | J167: 0.7628942108 | K167: =IF(B167="","",1-(1-VLOOKUP(C167,Mortality!$F$4:$H$105,IF(Gender="M",2,3)))^(1/12)) -> 0.001760893955 | L167: =IF(B167="","",1-(1-VLOOKUP(H167,Lapse!$B$3:$C$43,2))^(1/12)) -> 0.001682142553 | M167: 0.4609968423 | N167: 35.43561644 | O167: 381994.4285 | P167: 288858.9441 | Q167: 133622.7332 | R167: 18549447.21 | S167: 12219057.54
A168: 2036-09-30 | B168: 66.67328767 | C168: 66 | D168: 1 | E168: 10 | F168: 2037 | G168: 10 | H168: 14 | I168: 165 | J168: 0.7616363065 | K168: =IF(B168="","",1-(1-VLOOKUP(C168,Mortality!$F$4:$H$105,IF(Gender="M",2,3)))^(1/12)) -> 0.001760893955 | L168: =IF(B168="","",1-(1-VLOOKUP(H168,Lapse!$B$3:$C$43,2))^(1/12)) -> 0.001682142553 | M168: 0.4594109788 | N168: 35.43561644 | O168: 381994.4285 | P168: 288858.9441 | Q168: 133163.0611 | R168: 18446239.71 | S168: 12151071.77
A169: 2036-10-31 | B169: 66.756621 | C169: 66 | D169: 1 | E169: 11 | F169: 2037 | G169: 11 | H169: 14 | I169: 166 | J169: 0.7603804763 | K169: =IF(B169="","",1-(1-VLOOKUP(C169,Mortality!$F$4:$H$105,IF(Gender="M",2,3)))^(1/12)) -> 0.001760893955 | L169: =IF(B169="","",1-(1-VLOOKUP(H169,Lapse!$B$3:$C$43,2))^(1/12)) -> 0.001682142553 | M169: 0.4578305709 | N169: 35.43561644 | O169: 381994.4285 | P169: 288858.9441 | Q169: 132704.9702 | R169: 18343322.18 | S169: 12083277.02
A170: 2036-11-30 | B170: 66.83995434 | C170: 66 | D170: 1 | E170: 12 | F170: 2037 | G170: 12 | H170: 14 | I170: 167 | J170: 0.7591267168 | K170: =IF(B170="","",1-(1-VLOOKUP(C170,Mortality!$F$4:$H$105,IF(Gender="M",2,3)))^(1/12)) -> 0.001760893955 | L170: =IF(B170="","",1-(1-VLOOKUP(H170,Lapse!$B$3:$C$43,2))^(1/12)) -> 0.001682142553 | M170: 0.4562555996 | N170: 35.43561644 | O170: 381994.4285 | P170: 288858.9441 | Q170: 132248.4553 | R170: 18240693.53 | S170: 12015672.56
A171: 2036-12-31 | B171: 66.92328767 | C171: 66 | D171: 1 | E171: 1 | F171: 2038 | G171: 1 | H171: 15 | I171: 168 | J171: 0.7578750246 | K171: =IF(B171="","",1-(1-VLOOKUP(C171,Mortality!$F$4:$H$105,IF(Gender="M",2,3)))^(1/12)) -> 0.001760893955 | L171: =IF(B171="","",1-(1-VLOOKUP(H171,Lapse!$B$3:$C$43,2))^(1/12)) -> 0.001682142553 | M171: 0.4546860464 | N171: 35.43561644 | O171: 381994.4285 | P171: 290303.2388 | Q171: 132452.4783 | R171: 18138352.64 | S171: 11948257.66
A172: 2037-01-31 | B172: 67.006621 | C172: 67 | D172: 1 | E172: 2 | F172: 2038 | G172: 2 | H172: 15 | I172: 169 | J172: 0.7566253962 | K172: =IF(B172="","",1-(1-VLOOKUP(C172,Mortality!$F$4:$H$105,IF(Gender="M",2,3)))^(1/12)) -> 0.00187785483 | L172: =IF(B172="","",1-(1-VLOOKUP(H172,Lapse!$B$3:$C$43,2))^(1/12)) -> 0.001682142553 | M172: 0.4530688016 | N172: 35.43561644 | O172: 381994.4285 | P172: 290303.2388 | Q172: 131996.8319 | R172: 18035638.37 | S172: 11880596.79
A173: 2037-02-28 | B173: 67.08995434 | C173: 67 | D173: 1 | E173: 3 | F173: 2038 | G173: 3 | H173: 15 | I173: 170 | J173: 0.7553778283 | K173: =IF(B173="","",1-(1-VLOOKUP(C173,Mortality!$F$4:$H$105,IF(Gender="M",2,3)))^(1/12)) -> 0.00187785483 | L173: =IF(B173="","",1-(1-VLOOKUP(H173,Lapse!$B$3:$C$43,2))^(1/12)) -> 0.001682142553 | M173: 0.451457309 | N173: 35.43561644 | O173: 381994.4285 | P173: 290303.2388 | Q173: 131527.3405 | R173: 17933210.86 | S173: 11813124.83
A174: 2037-03-31 | B174: 67.17328767 | C174: 67 | D174: 1 | E174: 4 | F174: 2038 | G174: 4 | H174: 15 | I174: 171 | J174: 0.7541323175 | K174: =IF(B174="","",1-(1-VLOOKUP(C174,Mortality!$F$4:$H$105,IF(Gender="M",2,3)))^(1/12)) -> 0.00187785483 | L174: =IF(B174="","",1-(1-VLOOKUP(H174,Lapse!$B$3:$C$43,2))^(1/12)) -> 0.001682142553 | M174: 0.4498515482 | N174: 35.43561644 | O174: 381994.4285 | P174: 290303.2388 | Q174: 131059.519 | R174: 17831084.45 | S174: 11745851.21
A175: 2037-04-30 | B175: 67.256621 | C175: 67 | D175: 1 | E175: 5 | F175: 2038 | G175: 5 | H175: 15 | I175: 172 | J175: 0.7528888603 | K175: =IF(B175="","",1-(1-VLOOKUP(C175,Mortality!$F$4:$H$105,IF(Gender="M",2,3)))^(1/12)) -> 0.00187785483 | L175: =IF(B175="","",1-(1-VLOOKUP(H175,Lapse!$B$3:$C$43,2))^(1/12)) -> 0.001682142553 | M175: 0.4482514989 | N175: 35.43561644 | O175: 381994.4285 | P175: 290303.2388 | Q175: 130593.3614 | R175: 17729257.96 | S175: 11678775.15
A176: 2037-05-31 | B176: 67.33995434 | C176: 67 | D176: 1 | E176: 6 | F176: 2038 | G176: 6 | H176: 15 | I176: 173 | J176: 0.7516474535 | K176: =IF(B176="","",1-(1-VLOOKUP(C176,Mortality!$F$4:$H$105,IF(Gender="M",2,3)))^(1/12)) -> 0.00187785483 | L176: =IF(B176="","",1-(1-VLOOKUP(H176,Lapse!$B$3:$C$43,2))^(1/12)) -> 0.001682142553 | M176: 0.4466571407 | N176: 35.43561644 | O176: 381994.4285 | P176: 290303.2388 | Q176: 130128.8619 | R176: 17627730.22 | S176: 11611895.89
A177: 2037-06-30 | B177: 67.42328767 | C177: 67 | D177: 1 | E177: 7 | F177: 2038 | G177: 7 | H177: 15 | I177: 174 | J177: 0.7504080935 | K177: =IF(B177="","",1-(1-VLOOKUP(C177,Mortality!$F$4:$H$105,IF(Gender="M",2,3)))^(1/12)) -> 0.00187785483 | L177: =IF(B177="","",1-(1-VLOOKUP(H177,Lapse!$B$3:$C$43,2))^(1/12)) -> 0.001682142553 | M177: 0.4450684533 | N177: 35.43561644 | O177: 381994.4285 | P177: 290303.2388 | Q177: 129666.0146 | R177: 17526500.07 | S177: 11545212.67
A178: 2037-07-31 | B178: 67.506621 | C178: 67 | D178: 1 | E178: 8 | F178: 2038 | G178: 8 | H178: 15 | I178: 175 | J178: 0.749170777 | K178: =IF(B178="","",1-(1-VLOOKUP(C178,Mortality!$F$4:$H$105,IF(Gender="M",2,3)))^(1/12)) -> 0.00187785483 | L178: =IF(B178="","",1-(1-VLOOKUP(H178,Lapse!$B$3:$C$43,2))^(1/12)) -> 0.001682142553 | M178: 0.4434854167 | N178: 35.43561644 | O178: 381994.4285 | P178: 290303.2388 | Q178: 129204.8135 | R178: 17425566.34 | S178: 11478724.7
A179: 2037-08-31 | B179: 67.58995434 | C179: 67 | D179: 1 | E179: 9 | F179: 2038 | G179: 9 | H179: 15 | I179: 176 | J179: 0.7479355007 | K179: =IF(B179="","",1-(1-VLOOKUP(C179,Mortality!$F$4:$H$105,IF(Gender="M",2,3)))^(1/12)) -> 0.00187785483 | L179: =IF(B179="","",1-(1-VLOOKUP(H179,Lapse!$B$3:$C$43,2))^(1/12)) -> 0.001682142553 | M179: 0.4419080106 | N179: 35.43561644 | O179: 381994.4285 | P179: 290303.2388 | Q179: 128745.2528 | R179: 17324927.88 | S179: 11412431.23
A180: 2037-09-30 | B180: 67.67328767 | C180: 67 | D180: 1 | E180: 10 | F180: 2038 | G180: 10 | H180: 15 | I180: 177 | J180: 0.7467022613 | K180: =IF(B180="","",1-(1-VLOOKUP(C180,Mortality!$F$4:$H$105,IF(Gender="M",2,3)))^(1/12)) -> 0.00187785483 | L180: =IF(B180="","",1-(1-VLOOKUP(H180,Lapse!$B$3:$C$43,2))^(1/12)) -> 0.001682142553 | M180: 0.4403362152 | N180: 35.43561644 | O180: 381994.4285 | P180: 290303.2388 | Q180: 128287.3267 | R180: 17224583.52 | S180: 11346331.5
A181: 2037-10-31 | B181: 67.756621 | C181: 67 | D181: 1 | E181: 11 | F181: 2038 | G181: 11 | H181: 15 | I181: 178 | J181: 0.7454710552 | K181: =IF(B181="","",1-(1-VLOOKUP(C181,Mortality!$F$4:$H$105,IF(Gender="M",2,3)))^(1/12)) -> 0.00187785483 | L181: =IF(B181="","",1-(1-VLOOKUP(H181,Lapse!$B$3:$C$43,2))^(1/12)) -> 0.001682142553 | M181: 0.4387700104 | N181: 35.43561644 | O181: 381994.4285 | P181: 290303.2388 | Q181: 127831.0294 | R181: 17124532.11 | S181: 11280424.74
A182: 2037-11-30 | B182: 67.83995434 | C182: 67 | D182: 1 | E182: 12 | F182: 2038 | G182: 12 | H182: 15 | I182: 179 | J182: 0.7442418792 | K182: =IF(B182="","",1-(1-VLOOKUP(C182,Mortality!$F$4:$H$105,IF(Gender="M",2,3)))^(1/12)) -> 0.00187785483 | L182: =IF(B182="","",1-(1-VLOOKUP(H182,Lapse!$B$3:$C$43,2))^(1/12)) -> 0.001682142553 | M182: 0.4372093763 | N182: 35.43561644 | O182: 381994.4285 | P182: 290303.2388 | Q182: 127376.3551 | R182: 17024772.52 | S182: 11214710.21
A183: 2037-12-31 | B183: 67.92328767 | C183: 67 | D183: 1 | E183: 1 | F183: 2039 | G183: 1 | H183: 16 | I183: 180 | J183: 0.74301473 | K183: =IF(B183="","",1-(1-VLOOKUP(C183,Mortality!$F$4:$H$105,IF(Gender="M",2,3)))^(1/12)) -> 0.00187785483 | L183: =IF(B183="","",1-(1-VLOOKUP(H183,Lapse!$B$3:$C$43,2))^(1/12)) -> 0.001682142553 | M183: 0.4356542931 | N183: 35.43561644 | O183: 381994.4285 | P183: 291754.755 | Q183: 127557.9144 | R183: 16925303.59 | S183: 11149187.15
A184: 2038-01-31 | B184: 68.006621 | C184: 68 | D184: 1 | E184: 2 | F184: 2039 | G184: 2 | H184: 16 | I184: 181 | J184: 0.7417896041 | K184: =IF(B184="","",1-(1-VLOOKUP(C184,Mortality!$F$4:$H$105,IF(Gender="M",2,3)))^(1/12)) -> 0.002005643252 | L184: =IF(B184="","",1-(1-VLOOKUP(H184,Lapse!$B$3:$C$43,2))^(1/12)) -> 0.001682142553 | M184: 0.4340491632 | N184: 35.43561644 | O184: 381994.4285 | P184: 291754.755 | Q184: 127104.2115 | R184: 16825488.52 | S184: 11083436.07
A185: 2038-02-28 | B185: 68.08995434 | C185: 68 | D185: 1 | E185: 3 | F185: 2039 | G185: 3 | H185: 16 | I185: 182 | J185: 0.7405664984 | K185: =IF(B185="","",1-(1-VLOOKUP(C185,Mortality!$F$4:$H$105,IF(Gender="M",2,3)))^(1/12)) -> 0.002005643252 | L185: =IF(B185="","",1-(1-VLOOKUP(H185,Lapse!$B$3:$C$43,2))^(1/12)) -> 0.001682142553 | M185: 0.4324499472 | N185: 35.43561644 | O185: 381994.4285 | P185: 291754.755 | Q185: 126635.9072 | R185: 16725963.04 | S185: 11017875.76
A186: 2038-03-31 | B186: 68.17328767 | C186: 68 | D186: 1 | E186: 4 | F186: 2039 | G186: 4 | H186: 16 | I186: 183 | J186: 0.7393454093 | K186: =IF(B186="","",1-(1-VLOOKUP(C186,Mortality!$F$4:$H$105,IF(Gender="M",2,3)))^(1/12)) -> 0.002005643252 | L186: =IF(B186="","",1-(1-VLOOKUP(H186,Lapse!$B$3:$C$43,2))^(1/12)) -> 0.001682142553 | M186: 0.4308566234 | N186: 35.43561644 | O186: 381994.4285 | P186: 291754.755 | Q186: 126169.3284 | R186: 16626742.27 | S186: 10952516.17
A187: 2038-04-30 | B187: 68.256621 | C187: 68 | D187: 1 | E187: 5 | F187: 2039 | G187: 5 | H187: 16 | I187: 184 | J187: 0.7381263337 | K187: =IF(B187="","",1-(1-VLOOKUP(C187,Mortality!$F$4:$H$105,IF(Gender="M",2,3)))^(1/12)) -> 0.002005643252 | L187: =IF(B187="","",1-(1-VLOOKUP(H187,Lapse!$B$3:$C$43,2))^(1/12)) -> 0.001682142553 | M187: 0.4292691701 | N187: 35.43561644 | O187: 381994.4285 | P187: 291754.755 | Q187: 125704.4686 | R187: 16527824.98 | S187: 10887356.49
A188: 2038-05-31 | B188: 68.33995434 | C188: 68 | D188: 1 | E188: 6 | F188: 2039 | G188: 6 | H188: 16 | I188: 185 | J188: 0.7369092681 | K188: =IF(B188="","",1-(1-VLOOKUP(C188,Mortality!$F$4:$H$105,IF(Gender="M",2,3)))^(1/12)) -> 0.002005643252 | L188: =IF(B188="","",1-(1-VLOOKUP(H188,Lapse!$B$3:$C$43,2))^(1/12)) -> 0.001682142553 | M188: 0.4276875656 | N188: 35.43561644 | O188: 381994.4285 | P188: 291754.755 | Q188: 125241.3215 | R188: 16429209.95 | S188: 10822395.92
A189: 2038-06-30 | B189: 68.42328767 | C189: 68 | D189: 1 | E189: 7 | F189: 2039 | G189: 7 | H189: 16 | I189: 186 | J189: 0.7356942093 | K189: =IF(B189="","",1-(1-VLOOKUP(C189,Mortality!$F$4:$H$105,IF(Gender="M",2,3)))^(1/12)) -> 0.002005643252 | L189: =IF(B189="","",1-(1-VLOOKUP(H189,Lapse!$B$3:$C$43,2))^(1/12)) -> 0.001682142553 | M189: 0.4261117884 | N189: 35.43561644 | O189: 381994.4285 | P189: 291754.755 | Q189: 124779.8809 | R189: 16330895.96 | S189: 10757633.65
A190: 2038-07-31 | B190: 68.506621 | C190: 68 | D190: 1 | E190: 8 | F190: 2039 | G190: 8 | H190: 16 | I190: 187 | J190: 0.734481154 | K190: =IF(B190="","",1-(1-VLOOKUP(C190,Mortality!$F$4:$H$105,IF(Gender="M",2,3)))^(1/12)) -> 0.002005643252 | L190: =IF(B190="","",1-(1-VLOOKUP(H190,Lapse!$B$3:$C$43,2))^(1/12)) -> 0.001682142553 | M190: 0.424541817 | N190: 35.43561644 | O190: 381994.4285 | P190: 291754.755 | Q190: 124320.1404 | R190: 16232881.8 | S190: 10693068.88
A191: 2038-08-31 | B191: 68.58995434 | C191: 68 | D191: 1 | E191: 9 | F191: 2039 | G191: 9 | H191: 16 | I191: 188 | J191: 0.7332700988 | K191: =IF(B191="","",1-(1-VLOOKUP(C191,Mortality!$F$4:$H$105,IF(Gender="M",2,3)))^(1/12)) -> 0.002005643252 | L191: =IF(B191="","",1-(1-VLOOKUP(H191,Lapse!$B$3:$C$43,2))^(1/12)) -> 0.001682142553 | M191: 0.42297763 | N191: 35.43561644 | O191: 381994.4285 | P191: 291754.755 | Q191: 123862.0938 | R191: 16135166.25 | S191: 10628700.83
A192: 2038-09-30 | B192: 68.67328767 | C192: 68 | D192: 1 | E192: 10 | F192: 2039 | G192: 10 | H192: 16 | I192: 189 | J192: 0.7320610404 | K192: =IF(B192="","",1-(1-VLOOKUP(C192,Mortality!$F$4:$H$105,IF(Gender="M",2,3)))^(1/12)) -> 0.002005643252 | L192: =IF(B192="","",1-(1-VLOOKUP(H192,Lapse!$B$3:$C$43,2))^(1/12)) -> 0.001682142553 | M192: 0.4214192062 | N192: 35.43561644 | O192: 381994.4285 | P192: 291754.755 | Q192: 123405.7348 | R192: 16037748.13 | S192: 10564528.69
A193: 2038-10-31 | B193: 68.756621 | C193: 68 | D193: 1 | E193: 11 | F193: 2039 | G193: 11 | H193: 16 | I193: 190 | J193: 0.7308539757 | K193: =IF(B193="","",1-(1-VLOOKUP(C193,Mortality!$F$4:$H$105,IF(Gender="M",2,3)))^(1/12)) -> 0.002005643252 | L193: =IF(B193="","",1-(1-VLOOKUP(H193,Lapse!$B$3:$C$43,2))^(1/12)) -> 0.001682142553 | M193: 0.4198665242 | N193: 35.43561644 | O193: 381994.4285 | P193: 291754.755 | Q193: 122951.0572 | R193: 15940626.23 | S193: 10500551.68
A194: 2038-11-30 | B194: 68.83995434 | C194: 68 | D194: 1 | E194: 12 | F194: 2039 | G194: 12 | H194: 16 | I194: 191 | J194: 0.7296489012 | K194: =IF(B194="","",1-(1-VLOOKUP(C194,Mortality!$F$4:$H$105,IF(Gender="M",2,3)))^(1/12)) -> 0.002005643252 | L194: =IF(B194="","",1-(1-VLOOKUP(H194,Lapse!$B$3:$C$43,2))^(1/12)) -> 0.001682142553 | M194: 0.4183195629 | N194: 35.43561644 | O194: 381994.4285 | P194: 291754.755 | Q194: 122498.0549 | R194: 15843799.35 | S194: 10436769.01
A195: 2038-12-31 | B195: 68.92328767 | C195: 68 | D195: =IF(C195="","",IF(C195>=Retire_age,1,0)) -> 1 | E195: 1 | F195: 2040 | G195: 1 | H195: 17 | I195: 192 | J195: 0.7284458137 | K195: =IF(B195="","",1-(1-VLOOKUP(C195,Mortality!$F$4:$H$105,IF(Gender="M",2,3)))^(1/12)) -> 0.002005643252 | L195: =IF(B195="","",1-(1-VLOOKUP(H195,Lapse!$B$3:$C$43,2))^(1/12)) -> 0.001682142553 | M195: 0.4167783013 | N195: =IF(B195="","",IF(retire_indicator=1,N194,MIN(YEARFRAC(DATE(Calender_year,Calender_month+1,0),Joined_date,3),Max_Schem_Service))) -> 35.43561644 | O195: =IF(B195="","",IF(retire_indicator=1,O194,Monthly_Salary*(1+Sal_increase_rate_pa)^(Calender_year-YEAR(Val_Date)-1))) -> 381994.4285 | P195: =IF(B195="","",IF(retire_indicator=1, Pension_factor*Scheme_service*Salary_PP*(1+Pension_increase_rate_pa)^(Calender_year-YEAR(Val_Date)-1),0)) -> 293213.5287 | Q195: =IF(B195="","",M194*Pension_PP) -> 122656.9552 | R195: =IF(B195="",0,Pension_CF+R196/(1+Disc_Rate_Month)) -> 15747266.3 | S195: =PVCF*current_service/except_service -> 10373179.9
A196: =IF(B196="","",EOMONTH(A195,1)) -> 2039-01-31 | B196: =IF(B195="","", IF(B195+1/12>Max_age,"",B195+1/12)) -> 69.006621 | C196: =IF(B196="","",INT(B196)) -> 69 | D196: 1 | E196: 2 | F196: 2040 | G196: 2 | H196: 17 | I196: =IF(B196="","",I195+1) -> 193 | J196: =IF(B196="","",(1+Disc_Rate_Month)^(-I196)) -> 0.7272447099 | K196: =IF(B196="","",1-(1-VLOOKUP(C196,Mortality!$F$4:$H$105,IF(Gender="M",2,3)))^(1/12)) -> 0.00214024572 | L196: =IF(B196="","",1-(1-VLOOKUP(H196,Lapse!$B$3:$C$43,2))^(1/12)) -> 0.001682142553 | M196: =IF(B196="","",M195*(1-K196)*(1-L196)) -> 0.4151867133 | N196: 35.43561644 | O196: 381994.4285 | P196: 293213.5287 | Q196: 122205.0364 | R196: 15650414.66 | S196: 10309380.92
A197: 2039-02-28 | B197: 69.08995434 | C197: 69 | D197: 1 | E197: =IF(B197="","",IF(E196=12,1,E196+1)) -> 3 | F197: =IF(B197="","",IF(E196=12,F196+1,F196)) -> 2040 | G197: =IF(B197="","",IF(G196=12,1,G196+1)) -> 3 | H197: =IF(B197="","",IF(G196=12,H196+1,H196)) -> 17 | I197: 194 | J197: 0.7260455866 | K197: =IF(B197="","",1-(1-VLOOKUP(C197,Mortality!$F$4:$H$105,IF(Gender="M",2,3)))^(1/12)) -> 0.00214024572 | L197: =IF(B197="","",1-(1-VLOOKUP(H197,Lapse!$B$3:$C$43,2))^(1/12)) -> 0.001682142553 | M197: 0.4136012032 | N197: 35.43561644 | O197: 381994.4285 | P197: 293213.5287 | Q197: 121738.3613 | R197: 15553855.72 | S197: 10245774.76
A198: 2039-03-31 | B198: 69.17328767 | C198: 69 | D198: 1 | E198: 4 | F198: 2040 | G198: 4 | H198: 17 | I198: 195 | J198: 0.7248484405 | K198: =IF(B198="","",1-(1-VLOOKUP(C198,Mortality!$F$4:$H$105,IF(Gender="M",2,3)))^(1/12)) -> 0.00214024572 | L198: =IF(B198="","",1-(1-VLOOKUP(H198,Lapse!$B$3:$C$43,2))^(1/12)) -> 0.001682142553 | M198: 0.4120217479 | N198: 35.43561644 | O198: 381994.4285 | P198: 293213.5287 | Q198: 121273.4683 | R198: 15457604.76 | S198: 10182371.46
A199: 2039-04-30 | B199: 69.256621 | C199: 69 | D199: 1 | E199: 5 | F199: 2040 | G199: 5 | H199: 17 | I199: 196 | J199: 0.7236532683 | K199: =IF(B199="","",1-(1-VLOOKUP(C199,Mortality!$F$4:$H$105,IF(Gender="M",2,3)))^(1/12)) -> 0.00214024572 | L199: =IF(B199="","",1-(1-VLOOKUP(H199,Lapse!$B$3:$C$43,2))^(1/12)) -> 0.001682142553 | M199: 0.4104483241 | N199: 35.43561644 | O199: 381994.4285 | P199: 293213.5287 | Q199: 120810.3506 | R199: 15361660.49 | S199: 10119170.2
A200: 2039-05-31 | B200: 69.33995434 | C200: 69 | D200: 1 | E200: 6 | F200: 2040 | G200: 6 | H200: 17 | I200: 197 | J200: 0.7224600668 | K200: =IF(B200="","",1-(1-VLOOKUP(C200,Mortality!$F$4:$H$105,IF(Gender="M",2,3)))^(1/12)) -> 0.00214024572 | L200: =IF(B200="","",1-(1-VLOOKUP(H200,Lapse!$B$3:$C$43,2))^(1/12)) -> 0.001682142553 | M200: 0.4088809089 | N200: 35.43561644 | O200: 381994.4285 | P200: 293213.5287 | Q200: 120349.0015 | R200: 15266021.64 | S200: 10056170.12
... 704 more rows

Sheet Mortality
B1: United States, 2021, Life Table
A2: Age (years) | B2: Probability of dying between ages x and x + 1 | C2: Probability of dying between ages x and x + 1 | D2: Probability of dying between ages x and x + 1
B3: For Total Population | C3: For Male | D3: For Female | G3: qx
B4: qx | C4: qx | D4: qx | F4: Age | G4: Male | H4: Female
A5: 0–1 | B5: 0.005445689429 | C5: 0.00583316898 | D5: 0.005040418822 | F5: 0 | G5: =C5 -> 0.00583316898 | H5: =D5 -> 0.005040418822
A6: 1–2 | B6: 0.0004025711387 | C6: 0.0004159184755 | D6: 0.0003886096529 | F6: 1 | G6: =C6 -> 0.0004159184755 | H6: =D6 -> 0.0003886096529
A7: 2–3 | B7: 0.0002542366274 | C7: 0.0002740231284 | D7: 0.0002335388563 | F7: 2 | G7: 0.0002740231284 | H7: 0.0002335388563
A8: 3–4 | B8: 0.0001918870694 | C8: 0.0002240961621 | D8: 0.0001582008845 | F8: 3 | G8: 0.0002240961621 | H8: 0.0001582008845
A9: 4–5 | B9: 0.0001613503409 | C9: 0.0001751494856 | D9: 0.0001469224662 | F9: 4 | G9: 0.0001751494856 | H9: 0.0001469224662
A10: 5–6 | B10: 0.0001428664109 | C10: 0.0001608388411 | D10: 0.0001240780257 | F10: 5 | G10: 0.0001608388411 | H10: 0.0001240780257
A11: 6–7 | B11: 0.0001299089199 | C11: 0.000149466432 | D11: 0.000109461369 | F11: 6 | G11: 0.000149466432 | H11: 0.000109461369
A12: 7–8 | B12: 0.0001190354524 | C12: 0.0001372527186 | D12: 9.99798649e-05 | F12: 7 | G12: 0.0001372527186 | H12: 9.99798649e-05
A13: 8–9 | B13: 0.0001071131701 | C13: 0.000119196171 | D13: 9.446238982e-05 | F13: 8 | G13: 0.000119196171 | H13: 9.446238982e-05
A14: 9–10 | B14: 9.548611706e-05 | C14: 9.795249207e-05 | D14: 9.290051094e-05 | F14: 9 | G14: 9.795249207e-05 | H14: 9.290051094e-05
A15: 10–11 | B15: 8.993080701e-05 | C15: 8.37289117e-05 | D15: 9.644117381e-05 | F15: 10 | G15: 8.37289117e-05 | H15: 9.644117381e-05
A16: 11–12 | B16: 9.982685879e-05 | C16: 9.280726226e-05 | D16: 0.0001072037558 | F16: 11 | G16: 9.280726226e-05 | H16: 0.0001072037558
A17: 12–13 | B17: 0.0001359705057 | C17: 0.000143787227 | D17: 0.0001277519914 | F17: 12 | G17: 0.000143787227 | H17: 0.0001277519914
A18: 13–14 | B18: 0.0002046690061 | C18: 0.0002475788933 | D18: 0.0001595739159 | F18: 13 | G18: 0.0002475788933 | H18: 0.0001595739159
A19: 14–15 | B19: 0.000298894156 | C19: 0.00039240357 | D19: 0.0002007317817 | F19: 14 | G19: 0.00039240357 | H19: 0.0002007317817
A20: 15–16 | B20: 0.0004052122531 | C20: 0.0005556684337 | D20: 0.0002474861685 | F20: 15 | G20: 0.0005556684337 | H20: 0.0002474861685
A21: 16–17 | B21: 0.0005130529171 | C21: 0.0007194523932 | D21: 0.0002969596244 | F21: 16 | G21: 0.0007194523932 | H21: 0.0002969596244
A22: 17–18 | B22: 0.0006229793653 | C22: 0.000884652196 | D22: 0.0003493443946 | F22: 17 | G22: 0.000884652196 | H22: 0.0003493443946
A23: 18–19 | B23: 0.0007308276254 | C23: 0.00104416383 | D23: 0.00040348529 | F23: 18 | G23: 0.00104416383 | H23: 0.00040348529
A24: 19–20 | B24: 0.000836958352 | C24: 0.00119887141 | D24: 0.0004591793695 | F24: 19 | G24: 0.00119887141 | H24: 0.0004591793695
A25: 20–21 | B25: 0.0009493204998 | C25: 0.001360825729 | D25: 0.0005201785825 | F25: 20 | G25: 0.001360825729 | H25: 0.0005201785825
A26: 21–22 | B26: 0.001064809854 | C26: 0.001526769251 | D26: 0.0005835910561 | F26: 21 | G26: 0.001526769251 | H26: 0.0005835910561
A27: 22–23 | B27: 0.001169851283 | C27: 0.00167764537 | D27: 0.000641474966 | F27: 22 | G27: 0.00167764537 | H27: 0.000641474966
A28: 23–24 | B28: 0.001258579083 | C28: 0.001805370441 | D28: 0.0006902317982 | F28: 23 | G28: 0.001805370441 | H28: 0.0006902317982
A29: 24–25 | B29: 0.001334920526 | C29: 0.001914535882 | D29: 0.0007331002853 | F29: 24 | G29: 0.001914535882 | H29: 0.0007331002853
A30: 25–26 | B30: 0.001405608724 | C30: 0.002014757134 | D30: 0.0007736900006 | F30: 25 | G30: 0.002014757134 | H30: 0.0007736900006
A31: 26–27 | B31: 0.001479519997 | C31: 0.002116333228 | D31: 0.0008195728296 | F31: 26 | G31: 0.002116333228 | H31: 0.0008195728296
A32: 27–28 | B32: 0.001560034929 | C32: 0.002221296774 | D32: 0.0008758690092 | F32: 27 | G32: 0.002221296774 | H32: 0.0008758690092
A33: 28–29 | B33: 0.001650915598 | C33: 0.002333762357 | D33: 0.0009461396839 | F33: 28 | G33: 0.002333762357 | H33: 0.0009461396839
A34: 29–30 | B34: 0.001748833689 | C34: 0.00245080376 | D34: 0.001026434242 | F34: 29 | G34: 0.00245080376 | H34: 0.001026434242
A35: 30–31 | B35: 0.001849254477 | C35: 0.002569060773 | D35: 0.001110919635 | F35: 30 | G35: 0.002569060773 | H35: 0.001110919635
A36: 31–32 | B36: 0.001946534845 | C36: 0.002682442777 | D36: 0.001193865435 | F36: 31 | G36: 0.002682442777 | H36: 0.001193865435
A37: 32–33 | B37: 0.002039701445 | C37: 0.002788675716 | D37: 0.001275047078 | F37: 32 | G37: 0.002788675716 | H37: 0.001275047078
A38: 33–34 | B38: 0.002128043445 | C38: 0.00288668042 | D38: 0.001353767817 | F38: 33 | G38: 0.00288668042 | H38: 0.001353767817
A39: 34–35 | B39: 0.00221556332 | C39: 0.002981660888 | D39: 0.00143312267 | F39: 34 | G39: 0.002981660888 | H39: 0.00143312267
A40: 35–36 | B40: 0.002308091382 | C40: 0.003080692841 | D40: 0.001518099336 | F40: 35 | G40: 0.003080692841 | H40: 0.001518099336
A41: 36–37 | B41: 0.002409243258 | C41: 0.003189677373 | D41: 0.001610698877 | F41: 36 | G41: 0.003189677373 | H41: 0.001610698877
A42: 37–38 | B42: 0.002518839203 | C42: 0.003310397966 | D42: 0.00170918717 | F42: 37 | G42: 0.003310397966 | H42: 0.00170918717
A43: 38–39 | B43: 0.002638272708 | C43: 0.003446067451 | D43: 0.001813562121 | F43: 38 | G43: 0.003446067451 | H43: 0.001813562121
A44: 39–40 | B44: 0.002768256934 | C44: 0.003597174073 | D44: 0.001924543176 | F44: 39 | G44: 0.003597174073 | H44: 0.001924543176
A45: 40–41 | B45: 0.002916490892 | C45: 0.003772139782 | D45: 0.002048463561 | F45: 40 | G45: 0.003772139782 | H45: 0.002048463561
A46: 41–42 | B46: 0.003078484908 | C46: 0.003963810392 | D46: 0.002183071105 | F46: 41 | G46: 0.003963810392 | H46: 0.002183071105
A47: 42–43 | B47: 0.003243524581 | C47: 0.004158393946 | D47: 0.002320914529 | F47: 42 | G47: 0.004158393946 | H47: 0.002320914529
A48: 43–44 | B48: 0.003409652971 | C48: 0.00435253093 | D48: 0.002461266937 | F48: 43 | G48: 0.00435253093 | H48: 0.002461266937
A49: 44–45 | B49: 0.003587225219 | C49: 0.004559838679 | D49: 0.002611197531 | F49: 44 | G49: 0.004559838679 | H49: 0.002611197531
A50: 45–46 | B50: 0.003792020725 | C50: 0.004799496848 | D50: 0.00278382469 | F50: 45 | G50: 0.004799496848 | H50: 0.00278382469
A51: 46–47 | B51: 0.00403583888 | C51: 0.005089799874 | D51: 0.002984095365 | F51: 46 | G51: 0.005089799874 | H51: 0.002984095365
A52: 47–48 | B52: 0.004315248691 | C52: 0.005430995021 | D52: 0.003203482134 | F52: 47 | G52: 0.005430995021 | H52: 0.003203482134
A53: 48–49 | B53: 0.004625073168 | C53: 0.005818386097 | D53: 0.003435502062 | F53: 48 | G53: 0.005818386097 | H53: 0.003435502062
A54: 49–50 | B54: 0.004959340673 | C54: 0.006240865216 | D54: 0.003679805435 | F54: 49 | G54: 0.006240865216 | H54: 0.003679805435
A55: 50–51 | B55: 0.005307620857 | C55: 0.006679444574 | D55: 0.003935023677 | F55: 50 | G55: 0.006679444574 | H55: 0.003935023677
A56: 51–52 | B56: 0.005685651675 | C56: 0.007151382975 | D56: 0.004217341077 | F56: 51 | G56: 0.007151382975 | H56: 0.004217341077
A57: 52–53 | B57: 0.006117654499 | C57: 0.007689756807 | D57: 0.004544211086 | F57: 52 | G57: 0.007689756807 | H57: 0.004544211086
A58: 53–54 | B58: 0.006619505119 | C58: 0.008316120133 | D58: 0.004927776288 | F58: 53 | G58: 0.008316120133 | H58: 0.004927776288
A59: 54–55 | B59: 0.007184223272 | C59: 0.009022964165 | D59: 0.005361374468 | F59: 54 | G59: 0.009022964165 | H59: 0.005361374468
A60: 55–56 | B60: 0.007766469382 | C60: 0.009754044004 | D60: 0.00580903003 | F60: 55 | G60: 0.009754044004 | H60: 0.00580903003
A61: 56–57 | B61: 0.008369085379 | C61: 0.01050987002 | D61: 0.006273764651 | F61: 56 | G61: 0.01050987002 | H61: 0.006273764651
A62: 57–58 | B62: 0.009041761048 | C62: 0.01134997886 | D62: 0.006795171183 | F62: 57 | G62: 0.01134997886 | H62: 0.006795171183
A63: 58–59 | B63: 0.009794997051 | C63: 0.01228476502 | D63: 0.007382660639 | F63: 58 | G63: 0.01228476502 | H63: 0.007382660639
A64: 59–60 | B64: 0.01060632616 | C64: 0.01328647323 | D64: 0.008019533008 | F64: 59 | G64: 0.01328647323 | H64: 0.008019533008
A65: 60–61 | B65: 0.01146697346 | C65: 0.01434127055 | D65: 0.008702823892 | F65: 60 | G65: 0.01434127055 | H65: 0.008702823892
A66: 61–62 | B66: 0.01233347971 | C66: 0.01540157199 | D66: 0.009395515546 | F66: 61 | G66: 0.01540157199 | H66: 0.009395515546
A67: 62–63 | B67: 0.01317346282 | C67: 0.01643686369 | D67: 0.01006580982 | F67: 62 | G67: 0.01643686369 | H67: 0.01006580982
A68: 63–64 | B68: 0.01398074348 | C68: 0.01744543388 | D68: 0.01070606522 | F68: 63 | G68: 0.01744543388 | H68: 0.01070606522
A69: 64–65 | B69: 0.0147979334 | C69: 0.01847464778 | D69: 0.01135447621 | F69: 64 | G69: 0.01847464778 | H69: 0.01135447621
A70: 65–66 | B70: 0.01566569135 | C70: 0.01957581937 | D70: 0.01204089168 | F70: 65 | G70: =C70 -> 0.01957581937 | H70: =D70 -> 0.01204089168
A71: 66–67 | B71: 0.01672566868 | C71: 0.0209272746 | D71: 0.01287995651 | F71: 66 | G71: 0.0209272746 | H71: 0.01287995651
A72: 67–68 | B72: 0.01785283908 | C72: 0.02230297029 | D72: 0.01382088754 | F72: 67 | G72: 0.02230297029 | H72: 0.01382088754
A73: 68–69 | B73: 0.01912217587 | C73: 0.02380399406 | D73: 0.01491526794 | F73: 68 | G73: 0.02380399406 | H73: 0.01491526794
A74: 69–70 | B74: 0.02052580379 | C74: 0.02538277209 | D74: 0.01618753932 | F74: 69 | G74: 0.02538277209 | H74: 0.01618753932
A75: 70–71 | B75: 0.02191938087 | C75: 0.02690804377 | D75: 0.01747533679 | F75: 70 | G75: 0.02690804377 | H75: 0.01747533679
A76: 71–72 | B76: 0.02353644744 | C76: 0.02870365791 | D76: 0.0189636834 | F76: 71 | G76: 0.02870365791 | H76: 0.0189636834
A77: 72–73 | B77: 0.02537246607 | C77: 0.03078819811 | D77: 0.02061554603 | F77: 72 | G77: 0.03078819811 | H77: 0.02061554603
A78: 73–74 | B78: 0.02761624381 | C78: 0.03336081281 | D78: 0.02260308713 | F78: 73 | G78: 0.03336081281 | H78: 0.02260308713
A79: 74–75 | B79: 0.02988906205 | C79: 0.03594400361 | D79: 0.02464723028 | F79: 74 | G79: 0.03594400361 | H79: 0.02464723028
A80: 75–76 | B80: 0.03372582048 | C80: 0.04049658775 | D80: 0.02793286368 | F80: 75 | G80: 0.04049658775 | H80: 0.02793286368
A81: 76–77 | B81: 0.03693345562 | C81: 0.04405327514 | D81: 0.03092229739 | F81: 76 | G81: 0.04405327514 | H81: 0.03092229739
A82: 77–78 | B82: 0.04101634398 | C82: 0.04880969971 | D82: 0.03453625739 | F82: 77 | G82: 0.04880969971 | H82: 0.03453625739
A83: 78–79 | B83: 0.04475826025 | C83: 0.05317326635 | D83: 0.03785700724 | F83: 78 | G83: 0.05317326635 | H83: 0.03785700724
A84: 79–80 | B84: 0.04953011125 | C84: 0.05890823528 | D84: 0.04196703061 | F84: 79 | G84: 0.05890823528 | H84: 0.04196703061
A85: 80–81 | B85: 0.05411972106 | C85: 0.06395351142 | D85: 0.04633565992 | F85: 80 | G85: 0.06395351142 | H85: 0.04633565992
A86: 81–82 | B86: 0.05948252976 | C86: 0.07031086087 | D86: 0.05108440667 | F86: 81 | G86: 0.07031086087 | H86: 0.05108440667
A87: 82–83 | B87: 0.06540139019 | C87: 0.07695848495 | D87: 0.05660809949 | F87: 82 | G87: 0.07695848495 | H87: 0.05660809949
A88: 83–84 | B88: 0.07222437114 | C88: 0.08481271565 | D88: 0.06288070977 | F88: 83 | G88: 0.08481271565 | H88: 0.06288070977
A89: 84–85 | B89: 0.08060851693 | C89: 0.09449961036 | D89: 0.07058231533 | F89: 84 | G89: 0.09449961036 | H89: 0.07058231533
A90: 85–86 | B90: 0.08913923055 | C90: 0.1043191925 | D90: 0.07914903015 | F90: 85 | G90: 0.1043191925 | H90: 0.07914903015
A91: 86–87 | B91: 0.09958574921 | C91: 0.1164283976 | D91: 0.08787020296 | F91: 86 | G91: 0.1164283976 | H91: 0.08787020296
A92: 87–88 | B92: 0.1110211983 | C92: 0.1296192259 | D92: 0.09871180356 | F92: 87 | G92: 0.1296192259 | H92: 0.09871180356
A93: 88–89 | B93: 0.1234838292 | C93: 0.1439136416 | D93: 0.1106353626 | F93: 88 | G93: 0.1439136416 | H93: 0.1106353626
A94: 89–90 | B94: 0.1370005161 | C94: 0.159316808 | D94: 0.1236855388 | F94: 89 | G94: 0.159316808 | H94: 0.1236855388
A95: 90–91 | B95: 0.1515838653 | C95: 0.175814122 | D95: 0.1378933191 | F95: 90 | G95: 0.175814122 | H95: 0.1378933191
A96: 91–92 | B96: 0.1672294438 | C96: 0.1933686286 | D96: 0.15327245 | F96: 91 | G96: 0.1933686286 | H96: 0.15327245
A97: 92–93 | B97: 0.1839132905 | C97: 0.2119191736 | D97: 0.1698159575 | F97: 92 | G97: 0.2119191736 | H97: 0.1698159575
A98: 93–94 | B98: 0.2015897781 | C98: 0.2313793451 | D98: 0.1874929965 | F98: 93 | G98: 0.2313793451 | H98: 0.1874929965
A99: 94–95 | B99: 0.2201903015 | C99: 0.2516376674 | D99: 0.2062462717 | F99: 94 | G99: 0.2516376674 | H99: 0.2062462717
A100: 95–96 | B100: 0.2396227866 | C100: 0.2725590765 | D100: 0.2259906232 | F100: 95 | G100: 0.2725590765 | H100: 0.2259906232
A101: 96–97 | B101: 0.2597724497 | C101: 0.2939877808 | D101: 0.2466127425 | F101: 96 | G101: 0.2939877808 | H101: 0.2466127425
A102: 97–98 | B102: 0.2805035114 | C102: 0.3157514632 | D102: 0.2679723501 | F102: 97 | G102: 0.3157514632 | H102: 0.2679723501
A103: 98–99 | B103: 0.3016624749 | C103: 0.3376664817 | D103: 0.2899051607 | F103: 98 | G103: 0.3376664817 | H103: 0.2899051607
A104: 99–100 | B104: 0.323082149 | C104: 0.3595440984 | D104: 0.3122272789 | F104: 99 | G104: 0.3595440984 | H104: 0.3122272789
A105: 100 and older | B105: 1 | C105: 1 | D105: 1 | F105: 100 | G105: 1 | H105: 1
A106: * Data Source: US National Vital Statistics Reports, Vol. 72, No. 12, November 7, 2023

Sheet Lapse
B1: Lapse/Terminal Rate Assumption
B2: Policy Year | C2: Rate
B3: 1 | C3: 0.1
B4: 2 | C4: 0.08
B5: 3 | C5: 0.07
B6: 4 | C6: 0.06
B7: 5 | C7: 0.05
B8: 6 | C8: 0.04
B9: 7 | C9: 0.03
B10: 8 | C10: 0.02
B11: 9 | C11: 0.02
B12: 10 | C12: 0.02
B13: 11 | C13: 0.02
B14: 12 | C14: 0.02
B15: 13 | C15: 0.02
B16: 14 | C16: 0.02
B17: 15 | C17: 0.02
B18: 16 | C18: 0.02
B19: 17 | C19: 0.02
B20: 18 | C20: 0.02
B21: 19 | C21: 0.02
B22: 20 | C22: 0.02
B23: 21 | C23: 0.02
B24: 22 | C24: 0.02
B25: 23 | C25: 0.02
B26: 24 | C26: 0.02
B27: 25 | C27: 0.02
B28: 26 | C28: 0.02
B29: 27 | C29: 0.02
B30: 28 | C30: 0.02
B31: 29 | C31: 0.02
B32: 30 | C32: 0.02
B33: 31 | C33: 0.02
B34: 32 | C34: 0.02
B35: 33 | C35: 0.02
B36: 34 | C36: 0.02
B37: 35 | C37: 0.02
B38: 36 | C38: 0.02
B39: 37 | C39: 0.02
B40: 38 | C40: 0.02
B41: 39 | C41: 0.02
B42: 40 | C42: 0.02
B43: 41 | C43: 0.02

Sheet Benefit_Factor
B1: Pension Benefit Factor
B2: Ordinary | C2: 0.02
B3: Senior | C3: 0.03
